Workbook

Sheet Front page (hidden)
B2: IPB Segment calculator
M4: Colour coding
M5: Data type | N5: Initial | O5: Colour
M6: Input | N6: I | O6: I
M7: Calculation | N7: C | O7: C
B8: This tool has been built by the A&I proposition team on behalf of the workplace proposition. | M8: Static data | N8: S | O8: S
M9: Output | N9: O | O9: O
B11: The tool will undergo a review 6 months after launch, 6 months after that and then every tax year end. Other reviews may be instigated by internal, regulatory or other changes.
B15: This spread sheet uses Macros and has been developed in MS Excel 2010 and saved as a macro enabled workbook.
B19: Version Control
B20: Version number | C20: Date changed | D20: Changed by | E20: Details of change
B21: 0.1 | C21: 2014-09-29 | D21: SLBC39 | E21: Development version - numerous changes after feedback from stakeholders
B22: 0.2 | C22: 2014-11-04 | D22: SLBC39 | E22: Development version - numerous changes after feedback from stakeholders
B23: 0.3 | C23: 2014-11-28 | D23: SLBC39 | E23: Development version - numerous changes after feedback from stakeholders
B24: 0.4 | C24: 2014-12-01 | D24: SLBC39 | E24: Development version - numerous changes after feedback from stakeholders
B25: 0.4.1 | C25: 2014-12-23 | D25: SLBC39 | E25: Development version - numerous changes after feedback from stakeholders
B26: 0.4.2 | C26: 2015-01-08 | D26: SLBC39 | E26: Changes to data validation to prevent erroneous values being used.
B27: 0.4.3 | C27: 2015-01-16 | D27: SLBC39 | E27: Change to option 3 to ensure it is correct
B28: 0.5 | C28: 2016-07-15 | D28: SL374Q | E28: Adviser Charge Inputs section and calculations added.

Sheet Main page
A3: Current date | B3: =TODAY() -> 2017-06-20
A5: Inputs
A6: Investment amount | B6: 111111
A7: =IF(Segments<=Segments_Max,"Number of segments required","Please enter a number of segments below the maximum allowed value") -> Number of segments required | B7: 123 | C7: =IF('Wd calc'!B1=0,"","Based on your inputs, the maximum number of segments you can have is "&TEXT('Wd calc'!B1,IF('Wd calc'!B1<1000,"000","0,000"))) -> Based on your inputs, the maximum number of segments you can have is 555
A8: Payment frequency | B8: Monthly
A9: =B8&" withdrawal required" -> Monthly withdrawal required | B9: 200
A11: User defined withdrawal value
A13: =IF(B16=0,"","Based on the withdrawal value you input of "&TEXT(B16,IF(B16<1000,"£000.00","£0,000.00"))&", the maximum number of segments is "&B17) -> Based on the withdrawal value you input of £200.00, the maximum number of segments is 500
A15: Required withdrawal
A16: =frequencytext&" Withdrawal" -> Monthly Withdrawal | B16: =B9 -> 200
A17: Segments | B17: ='seg calc'!F5 -> 500
A19: User defined number of segments
A21: =IF(B24="","","Based on the number of segments you input of "&B25&", the closest compatible "&frequencytext&" withdrawal is "&TEXT(B24,IF(B24<1000,"£000.00","£0,000.00"))) -> Based on the number of segments you input of 123, the closest compatible Monthly withdrawal is £200.49
A23: Required Segments
A24: =frequencytext&" Withdrawal" -> Monthly Withdrawal | B24: =IF(ISERROR('Wd calc'!B12),"",'Wd calc'!B12) -> 200.49 | C24: =IF(B24>Withdrawalreg,"The lowest valid withdrawal for the number of segments entered is higher than your input withdrawal. This may take the withdrawals above the client's 5% limit and be less tax efficient.","") -> The lowest valid withdrawal for the number of segments entered is higher than your input withdrawal. This may take the withdrawals above the client's 5% limit and be less tax efficient.
A25: Segments | B25: =MIN(B7,'Wd calc'!B1) -> 123
A28: Maximum number of segments within £1 of the required withdrawal
A30: =IF(B33="","","If you change the withdrawal amount to "&TEXT('Third option'!C4,IF('Third option'!C4<1000,"£000.00","£0,000.00"))&" then you could have "&'Third option'!C5&" segments.") -> If you change the withdrawal amount to £200.00 then you could have 500 segments.
A32: Required Segments
A33: =frequencytext&" Withdrawal" -> Monthly Withdrawal | B33: =IF(ISERROR('Third option'!C4),"",'Third option'!C4) -> 200
A34: Segments | B34: =IF(ISERROR('Third option'!C5),"",'Third option'!C5) -> 500
A37: Adviser Charge Inputs
A39: Please input the number of segments and the relevant Adviser Charge required.
A40: If you wish to take Withdrawals as well as Adviser Charging, please complete the Inputs section above first to ascertain the number of segments required and input this below.
A42: Number of segments | B42: 123
A44: Single Initial Adviser Charge | B44: 1
A45: Ongoing Adviser Charge per frequency | B45: 1530
A46: Ad-hoc Adviser Charge | B46: 123
A50: Based on the number of segments you input, the closest compatible Adviser Charge is:
A52: Required Adviser Charge
A53: Single Initial Adviser Charge | B53: =IFERROR(IF(SIAC_Input>0,((INT((SIAC_Input*100)/SegmentsAC))*SegmentsAC)/100," - "),"Number of segments must be entered") -> 0 | D53: =IF(B53<=0,"The closest compatible Adviser Charge is invalid, please alter Adviser Charge Inputs.","") -> The closest compatible Adviser Charge is invalid, please alter Adviser Charge Inputs.
A54: Ongoing Adviser Charge per frequency | B54: =IFERROR(IF(OAC_Input>0,((INT((OAC_Input*100)/SegmentsAC))*SegmentsAC)/100," - "),"Number of segments must be entered") -> 1528.89 | D54: =IF(B54<=0,"The closest compatible Adviser Charge is invalid, please alter Adviser Charge Inputs.","") -> 
A55: Ad-hoc Adviser Charge | B55: =IFERROR(IF(AHAC_Input>0,((INT((AHAC_Input*100)/SegmentsAC))*SegmentsAC)/100," - "),"Number of segments must be entered") -> 123 | D55: =IF(B55<=0,"The closest compatible Adviser Charge is invalid, please alter Adviser Charge Inputs.","") -> 
A62: Information, Limitations and Assumptions
A64: Information
A66: This calculator is designed to aid the user and not direct them to any decision. The calculator is designed for use by professional financial advisers only and should not be used by any other persons. The figures shown do not constitute a quote or any other legally binding output and Standard Life are not responsible for any advice given, action taken or action not taken as a direct or indirect result of using this calculator.
A69: If you have any questions about the offshore and IPB investment process, please contact your account manager for more details.
A71: Limitations & Assumptions
A73: (1) For purposes of validation it is assumed the minimum segment value is £200
A75: (2) When calculating the maximum number of segments in option three the calculator will provide an answer using a withdrawal which is up to 99p lower per frequency than the withdrawal input by the user.
A77: (3) In option two, if there are no viable withdrawals lower than the input withdrawal figure which allows the number of segments required, the withdrawal figure may be increased above the input value.
A79: (4) The calculator does not take the 5% tax free withdrawal available on some bonds into account; therefore any figures output here may have further tax consequences which you should consider.
A81: (5) Any figures output on this spreadsheet are not legally binding quotes but are designed to give you an indication of the number of segments which will be available to your client
A93: Help
A94: Inputs
A95: This calculator is designed to assist the user in maximizing the number of segments in an offshore bond for an input withdrawal. Enter the investment amount, payment frequency and withdrawal per frequency required. The calculator will give you three options:
A98: Option 1: Using the exact withdrawal you have entered the spreadsheet will calculate the maximum number of allowed segments.
A101: Option 2: Using the exact number of segments entered, the spreadsheet will calculate the withdrawal value closest to but lower than the original input withdrawal value. If this value is below the minimum withdrawal value (£200) then the spreadsheet will recalculate the withdrawal value for the closest figure above the input withdrawal.
A104: Option 3: Using the withdrawal value you have entered as a starting point, the calculator will find the largest number of segments available for a withdrawal closest the initial input figure but this figure cannot be higher than the initial input value and cannot be lower than 99p less than the input value. The calculator will look at the 100 values below the withdrawal figure and return this value with the number of allowed segments. This means your annual withdrawal could be up to 99p per frequency less than you have entered.
A108: Adviser Charge Inputs
A110: This calculator is designed to assist the user in calculating the adviser charge divisible to 2 decimal places based on the number of segments input. Enter the number of segments required and the adviser charge applicable.
A111: The calculator will output the required adviser charge based on the number of segments.
A113: If you wish to take Withdrawals as well as Adviser Charging, please complete the Inputs section first to ascertain the number of segments required and input this in the Adviser Charge Inputs.

Sheet seg calc (hidden)
A1: Withdrawal/ seg | B1: Identifier | C1: # Segments
A2: ='Main page'!$B$16/C2 -> 0.3603603604 | B2: =IF(LEN(A2)-LEN(INT(A2))=0,0,LEN(A2)-LEN(INT(A2))-1) -> 14 | C2: ='Wd calc'!B1 -> 555 | E2: 1 | F2: =IF(ISNA(VLOOKUP(E2,$B$1:$C$10000,2,FALSE)),0,VLOOKUP(E2,$B$1:$C$10000,2,FALSE)) -> 500
A3: ='Main page'!$B$16/C3 -> 0.3610108303 | B3: =IF(LEN(A3)-LEN(INT(A3))=0,0,LEN(A3)-LEN(INT(A3))-1) -> 14 | C3: =C2-1 -> 554 | E3: 2 | F3: =IF(ISNA(VLOOKUP(E3,$B$1:$C$10000,2,FALSE)),0,VLOOKUP(E3,$B$1:$C$10000,2,FALSE)) -> 160
A4: ='Main page'!$B$16/C4 -> 0.3616636528 | B4: =IF(LEN(A4)-LEN(INT(A4))=0,0,LEN(A4)-LEN(INT(A4))-1) -> 15 | C4: =C3-1 -> 553 | E4: 0 | F4: =IF(ISNA(VLOOKUP(E4,$B$1:$C$10000,2,FALSE)),0,VLOOKUP(E4,$B$1:$C$10000,2,FALSE)) -> 200
A5: ='Main page'!$B$16/C5 -> 0.3623188406 | B5: 14 | C5: 552 | E5: Max number of segments | F5: =MAX(F2:F4) -> 500
A6: ='Main page'!$B$16/C6 -> 0.3629764065 | B6: 15 | C6: 551
A7: ='Main page'!$B$16/C7 -> 0.3636363636 | B7: 15 | C7: 550
A8: ='Main page'!$B$16/C8 -> 0.364298725 | B8: 15 | C8: 549
A9: ='Main page'!$B$16/C9 -> 0.3649635036 | B9: 15 | C9: 548
A10: ='Main page'!$B$16/C10 -> 0.365630713 | B10: 14 | C10: 547
A11: ='Main page'!$B$16/C11 -> 0.3663003663 | B11: 15 | C11: 546
A12: ='Main page'!$B$16/C12 -> 0.3669724771 | B12: 14 | C12: 545
A13: ='Main page'!$B$16/C13 -> 0.3676470588 | B13: 15 | C13: 544
A14: ='Main page'!$B$16/C14 -> 0.3683241252 | B14: 15 | C14: 543
A15: ='Main page'!$B$16/C15 -> 0.36900369 | B15: 13 | C15: 542
A16: ='Main page'!$B$16/C16 -> 0.3696857671 | B16: 15 | C16: 541
A17: ='Main page'!$B$16/C17 -> 0.3703703704 | B17: 14 | C17: 540
A18: ='Main page'!$B$16/C18 -> 0.3710575139 | B18: 15 | C18: 539
A19: ='Main page'!$B$16/C19 -> 0.3717472119 | B19: 15 | C19: 538
A20: ='Main page'!$B$16/C20 -> 0.3724394786 | B20: 14 | C20: 537
A21: ='Main page'!$B$16/C21 -> 0.3731343284 | B21: 15 | C21: 536
A22: ='Main page'!$B$16/C22 -> 0.3738317757 | B22: 15 | C22: 535
A23: ='Main page'!$B$16/C23 -> 0.3745318352 | B23: 15 | C23: 534
A24: ='Main page'!$B$16/C24 -> 0.3752345216 | B24: 15 | C24: 533
A25: ='Main page'!$B$16/C25 -> 0.3759398496 | B25: 14 | C25: 532
A26: ='Main page'!$B$16/C26 -> 0.3766478343 | B26: 15 | C26: 531
A27: ='Main page'!$B$16/C27 -> 0.3773584906 | B27: 15 | C27: 530
A28: ='Main page'!$B$16/C28 -> 0.3780718336 | B28: 15 | C28: 529
A29: ='Main page'!$B$16/C29 -> 0.3787878788 | B29: 15 | C29: 528
A30: ='Main page'!$B$16/C30 -> 0.3795066414 | B30: 15 | C30: 527
A31: ='Main page'!$B$16/C31 -> 0.3802281369 | B31: 15 | C31: 526
A32: ='Main page'!$B$16/C32 -> 0.380952381 | B32: 15 | C32: 525
A33: ='Main page'!$B$16/C33 -> 0.3816793893 | B33: 15 | C33: 524
A34: ='Main page'!$B$16/C34 -> 0.3824091778 | B34: 15 | C34: 523
A35: ='Main page'!$B$16/C35 -> 0.3831417625 | B35: 15 | C35: 522
A36: ='Main page'!$B$16/C36 -> 0.3838771593 | B36: 15 | C36: 521
A37: ='Main page'!$B$16/C37 -> 0.3846153846 | B37: 15 | C37: 520
A38: ='Main page'!$B$16/C38 -> 0.3853564547 | B38: 15 | C38: 519
A39: ='Main page'!$B$16/C39 -> 0.3861003861 | B39: 15 | C39: 518
A40: ='Main page'!$B$16/C40 -> 0.3868471954 | B40: 15 | C40: 517
A41: ='Main page'!$B$16/C41 -> 0.3875968992 | B41: 15 | C41: 516
A42: ='Main page'!$B$16/C42 -> 0.3883495146 | B42: 15 | C42: 515
A43: ='Main page'!$B$16/C43 -> 0.3891050584 | B43: 15 | C43: 514
A44: ='Main page'!$B$16/C44 -> 0.3898635478 | B44: 15 | C44: 513
A45: ='Main page'!$B$16/C45 -> 0.390625 | B45: 6 | C45: 512
A46: ='Main page'!$B$16/C46 -> 0.3913894325 | B46: 15 | C46: 511
A47: ='Main page'!$B$16/C47 -> 0.3921568627 | B47: 15 | C47: 510
A48: ='Main page'!$B$16/C48 -> 0.3929273084 | B48: 15 | C48: 509
A49: ='Main page'!$B$16/C49 -> 0.3937007874 | B49: 15 | C49: 508
A50: ='Main page'!$B$16/C50 -> 0.3944773176 | B50: 15 | C50: 507
A51: ='Main page'!$B$16/C51 -> 0.395256917 | B51: 15 | C51: 506
A52: ='Main page'!$B$16/C52 -> 0.396039604 | B52: 15 | C52: 505
A53: ='Main page'!$B$16/C53 -> 0.3968253968 | B53: 15 | C53: 504
A54: ='Main page'!$B$16/C54 -> 0.3976143141 | B54: 15 | C54: 503
A55: ='Main page'!$B$16/C55 -> 0.3984063745 | B55: 15 | C55: 502
A56: ='Main page'!$B$16/C56 -> 0.3992015968 | B56: 15 | C56: 501
A57: ='Main page'!$B$16/C57 -> 0.4 | B57: 1 | C57: 500
A58: ='Main page'!$B$16/C58 -> 0.4008016032 | B58: 15 | C58: 499
A59: ='Main page'!$B$16/C59 -> 0.4016064257 | B59: 15 | C59: 498
A60: ='Main page'!$B$16/C60 -> 0.4024144869 | B60: 15 | C60: 497
A61: ='Main page'!$B$16/C61 -> 0.4032258065 | B61: 15 | C61: 496
A62: ='Main page'!$B$16/C62 -> 0.404040404 | B62: 15 | C62: 495
A63: ='Main page'!$B$16/C63 -> 0.4048582996 | B63: 15 | C63: 494
A64: ='Main page'!$B$16/C64 -> 0.4056795132 | B64: 15 | C64: 493
A65: ='Main page'!$B$16/C65 -> 0.406504065 | B65: 14 | C65: 492
A66: ='Main page'!$B$16/C66 -> 0.4073319756 | B66: 15 | C66: 491
A67: ='Main page'!$B$16/C67 -> 0.4081632653 | B67: =IF(LEN(A67)-LEN(INT(A67))=0,0,LEN(A67)-LEN(INT(A67))-1) -> 15 | C67: 490
A68: ='Main page'!$B$16/C68 -> 0.408997955 | B68: 15 | C68: =C67-1 -> 489
A69: ='Main page'!$B$16/C69 -> 0.4098360656 | B69: 15 | C69: 488
A70: ='Main page'!$B$16/C70 -> 0.4106776181 | B70: 15 | C70: 487
A71: ='Main page'!$B$16/C71 -> 0.4115226337 | B71: 15 | C71: 486
A72: ='Main page'!$B$16/C72 -> 0.412371134 | B72: 15 | C72: 485
A73: ='Main page'!$B$16/C73 -> 0.4132231405 | B73: 15 | C73: 484
A74: ='Main page'!$B$16/C74 -> 0.4140786749 | B74: 14 | C74: 483
A75: ='Main page'!$B$16/C75 -> 0.4149377593 | B75: 13 | C75: 482
A76: ='Main page'!$B$16/C76 -> 0.4158004158 | B76: 15 | C76: 481
A77: ='Main page'!$B$16/C77 -> 0.4166666667 | B77: 15 | C77: 480
A78: ='Main page'!$B$16/C78 -> 0.4175365344 | B78: 15 | C78: 479
A79: ='Main page'!$B$16/C79 -> 0.4184100418 | B79: 15 | C79: 478
A80: ='Main page'!$B$16/C80 -> 0.4192872117 | B80: 15 | C80: 477
A81: ='Main page'!$B$16/C81 -> 0.4201680672 | B81: 15 | C81: 476
A82: ='Main page'!$B$16/C82 -> 0.4210526316 | B82: 15 | C82: 475
A83: ='Main page'!$B$16/C83 -> 0.4219409283 | B83: 15 | C83: 474
A84: ='Main page'!$B$16/C84 -> 0.422832981 | B84: 15 | C84: 473
A85: ='Main page'!$B$16/C85 -> 0.4237288136 | B85: 15 | C85: 472
A86: ='Main page'!$B$16/C86 -> 0.4246284501 | B86: 15 | C86: 471
A87: ='Main page'!$B$16/C87 -> 0.4255319149 | B87: 15 | C87: 470
A88: ='Main page'!$B$16/C88 -> 0.4264392324 | B88: 15 | C88: 469
A89: ='Main page'!$B$16/C89 -> 0.4273504274 | B89: 15 | C89: 468
A90: ='Main page'!$B$16/C90 -> 0.4282655246 | B90: 15 | C90: 467
A91: ='Main page'!$B$16/C91 -> 0.4291845494 | B91: 15 | C91: 466
A92: ='Main page'!$B$16/C92 -> 0.4301075269 | B92: 14 | C92: 465
A93: ='Main page'!$B$16/C93 -> 0.4310344828 | B93: 15 | C93: 464
A94: ='Main page'!$B$16/C94 -> 0.4319654428 | B94: 15 | C94: 463
A95: ='Main page'!$B$16/C95 -> 0.4329004329 | B95: 15 | C95: 462
A96: ='Main page'!$B$16/C96 -> 0.4338394794 | B96: 15 | C96: 461
A97: ='Main page'!$B$16/C97 -> 0.4347826087 | B97: 15 | C97: 460
A98: ='Main page'!$B$16/C98 -> 0.4357298475 | B98: 15 | C98: 459
A99: ='Main page'!$B$16/C99 -> 0.4366812227 | B99: 15 | C99: 458
A100: ='Main page'!$B$16/C100 -> 0.4376367615 | B100: 15 | C100: 457
A101: ='Main page'!$B$16/C101 -> 0.4385964912 | B101: 14 | C101: 456
A102: ='Main page'!$B$16/C102 -> 0.4395604396 | B102: 14 | C102: 455
A103: ='Main page'!$B$16/C103 -> 0.4405286344 | B103: 15 | C103: 454
A104: ='Main page'!$B$16/C104 -> 0.4415011038 | B104: 15 | C104: 453
A105: ='Main page'!$B$16/C105 -> 0.4424778761 | B105: 15 | C105: 452
A106: ='Main page'!$B$16/C106 -> 0.44345898 | B106: 15 | C106: 451
A107: ='Main page'!$B$16/C107 -> 0.4444444444 | B107: 15 | C107: 450
A108: ='Main page'!$B$16/C108 -> 0.4454342984 | B108: 14 | C108: 449
A109: ='Main page'!$B$16/C109 -> 0.4464285714 | B109: 15 | C109: 448
A110: ='Main page'!$B$16/C110 -> 0.4474272931 | B110: 15 | C110: 447
A111: ='Main page'!$B$16/C111 -> 0.4484304933 | B111: 15 | C111: 446
A112: ='Main page'!$B$16/C112 -> 0.4494382022 | B112: 15 | C112: 445
A113: ='Main page'!$B$16/C113 -> 0.4504504505 | B113: 14 | C113: 444
A114: ='Main page'!$B$16/C114 -> 0.4514672686 | B114: 15 | C114: 443
A115: ='Main page'!$B$16/C115 -> 0.4524886878 | B115: 15 | C115: 442
A116: ='Main page'!$B$16/C116 -> 0.4535147392 | B116: 15 | C116: 441
A117: ='Main page'!$B$16/C117 -> 0.4545454545 | B117: 15 | C117: 440
A118: ='Main page'!$B$16/C118 -> 0.4555808656 | B118: 15 | C118: 439
A119: ='Main page'!$B$16/C119 -> 0.4566210046 | B119: 14 | C119: 438
A120: ='Main page'!$B$16/C120 -> 0.4576659039 | B120: 14 | C120: 437
A121: ='Main page'!$B$16/C121 -> 0.4587155963 | B121: 15 | C121: 436
A122: ='Main page'!$B$16/C122 -> 0.4597701149 | B122: 15 | C122: 435
A123: ='Main page'!$B$16/C123 -> 0.4608294931 | B123: 15 | C123: 434
A124: ='Main page'!$B$16/C124 -> 0.4618937644 | B124: 14 | C124: 433
A125: ='Main page'!$B$16/C125 -> 0.462962963 | B125: 15 | C125: 432
A126: ='Main page'!$B$16/C126 -> 0.464037123 | B126: 15 | C126: 431
A127: ='Main page'!$B$16/C127 -> 0.4651162791 | B127: 15 | C127: 430
A128: ='Main page'!$B$16/C128 -> 0.4662004662 | B128: 15 | C128: 429
A129: ='Main page'!$B$16/C129 -> 0.4672897196 | B129: 15 | C129: 428
A130: ='Main page'!$B$16/C130 -> 0.4683840749 | B130: 15 | C130: 427
A131: ='Main page'!$B$16/C131 -> 0.4694835681 | B131: =IF(LEN(A131)-LEN(INT(A131))=0,0,LEN(A131)-LEN(INT(A131))-1) -> 15 | C131: 426
A132: ='Main page'!$B$16/C132 -> 0.4705882353 | B132: 15 | C132: =C131-1 -> 425
A133: ='Main page'!$B$16/C133 -> 0.4716981132 | B133: 15 | C133: 424
A134: ='Main page'!$B$16/C134 -> 0.4728132388 | B134: 15 | C134: 423
A135: ='Main page'!$B$16/C135 -> 0.4739336493 | B135: 13 | C135: 422
A136: ='Main page'!$B$16/C136 -> 0.4750593824 | B136: 15 | C136: 421
A137: ='Main page'!$B$16/C137 -> 0.4761904762 | B137: 15 | C137: 420
A138: ='Main page'!$B$16/C138 -> 0.477326969 | B138: 15 | C138: 419
A139: ='Main page'!$B$16/C139 -> 0.4784688995 | B139: 15 | C139: 418
A140: ='Main page'!$B$16/C140 -> 0.479616307 | B140: 15 | C140: 417
A141: ='Main page'!$B$16/C141 -> 0.4807692308 | B141: 15 | C141: 416
A142: ='Main page'!$B$16/C142 -> 0.4819277108 | B142: 15 | C142: 415
A143: ='Main page'!$B$16/C143 -> 0.4830917874 | B143: 15 | C143: 414
A144: ='Main page'!$B$16/C144 -> 0.4842615012 | B144: 15 | C144: 413
A145: ='Main page'!$B$16/C145 -> 0.4854368932 | B145: 15 | C145: 412
A146: ='Main page'!$B$16/C146 -> 0.4866180049 | B146: 14 | C146: 411
A147: ='Main page'!$B$16/C147 -> 0.487804878 | B147: 14 | C147: 410
A148: ='Main page'!$B$16/C148 -> 0.488997555 | B148: 15 | C148: 409
A149: ='Main page'!$B$16/C149 -> 0.4901960784 | B149: 15 | C149: 408
A150: ='Main page'!$B$16/C150 -> 0.4914004914 | B150: 15 | C150: 407
A151: ='Main page'!$B$16/C151 -> 0.4926108374 | B151: 15 | C151: 406
A152: ='Main page'!$B$16/C152 -> 0.4938271605 | B152: 15 | C152: 405
A153: ='Main page'!$B$16/C153 -> 0.495049505 | B153: 15 | C153: 404
A154: ='Main page'!$B$16/C154 -> 0.4962779156 | B154: 15 | C154: 403
A155: ='Main page'!$B$16/C155 -> 0.4975124378 | B155: 15 | C155: 402
A156: ='Main page'!$B$16/C156 -> 0.4987531172 | B156: 15 | C156: 401
A157: ='Main page'!$B$16/C157 -> 0.5 | B157: 1 | C157: 400
A158: ='Main page'!$B$16/C158 -> 0.5012531328 | B158: 14 | C158: 399
A159: ='Main page'!$B$16/C159 -> 0.5025125628 | B159: 14 | C159: 398
A160: ='Main page'!$B$16/C160 -> 0.5037783375 | B160: 15 | C160: 397
A161: ='Main page'!$B$16/C161 -> 0.5050505051 | B161: 15 | C161: 396
A162: ='Main page'!$B$16/C162 -> 0.5063291139 | B162: 15 | C162: 395
A163: ='Main page'!$B$16/C163 -> 0.5076142132 | B163: 14 | C163: 394
A164: ='Main page'!$B$16/C164 -> 0.5089058524 | B164: 15 | C164: 393
A165: ='Main page'!$B$16/C165 -> 0.5102040816 | B165: 15 | C165: 392
A166: ='Main page'!$B$16/C166 -> 0.5115089514 | B166: 14 | C166: 391
A167: ='Main page'!$B$16/C167 -> 0.5128205128 | B167: 15 | C167: 390
A168: ='Main page'!$B$16/C168 -> 0.5141388175 | B168: 14 | C168: 389
A169: ='Main page'!$B$16/C169 -> 0.5154639175 | B169: 15 | C169: 388
A170: ='Main page'!$B$16/C170 -> 0.5167958656 | B170: 15 | C170: 387
A171: ='Main page'!$B$16/C171 -> 0.518134715 | B171: 15 | C171: 386
A172: ='Main page'!$B$16/C172 -> 0.5194805195 | B172: 15 | C172: 385
A173: ='Main page'!$B$16/C173 -> 0.5208333333 | B173: 15 | C173: 384
A174: ='Main page'!$B$16/C174 -> 0.5221932115 | B174: 15 | C174: 383
A175: ='Main page'!$B$16/C175 -> 0.5235602094 | B175: 15 | C175: 382
A176: ='Main page'!$B$16/C176 -> 0.5249343832 | B176: 13 | C176: 381
A177: ='Main page'!$B$16/C177 -> 0.5263157895 | B177: 15 | C177: 380
A178: ='Main page'!$B$16/C178 -> 0.5277044855 | B178: 15 | C178: 379
A179: ='Main page'!$B$16/C179 -> 0.5291005291 | B179: 15 | C179: 378
A180: ='Main page'!$B$16/C180 -> 0.5305039788 | B180: 15 | C180: 377
A181: ='Main page'!$B$16/C181 -> 0.5319148936 | B181: 15 | C181: 376
A182: ='Main page'!$B$16/C182 -> 0.5333333333 | B182: 15 | C182: 375
A183: ='Main page'!$B$16/C183 -> 0.5347593583 | B183: 14 | C183: 374
A184: ='Main page'!$B$16/C184 -> 0.5361930295 | B184: 15 | C184: 373
A185: ='Main page'!$B$16/C185 -> 0.5376344086 | B185: 15 | C185: 372
A186: ='Main page'!$B$16/C186 -> 0.539083558 | B186: 15 | C186: 371
A187: ='Main page'!$B$16/C187 -> 0.5405405405 | B187: 15 | C187: 370
A188: ='Main page'!$B$16/C188 -> 0.5420054201 | B188: 13 | C188: 369
A189: ='Main page'!$B$16/C189 -> 0.5434782609 | B189: 15 | C189: 368
A190: ='Main page'!$B$16/C190 -> 0.5449591281 | B190: 15 | C190: 367
A191: ='Main page'!$B$16/C191 -> 0.5464480874 | B191: 15 | C191: 366
A192: ='Main page'!$B$16/C192 -> 0.5479452055 | B192: 15 | C192: 365
A193: ='Main page'!$B$16/C193 -> 0.5494505495 | B193: 15 | C193: 364
A194: ='Main page'!$B$16/C194 -> 0.5509641873 | B194: 15 | C194: 363
A195: ='Main page'!$B$16/C195 -> 0.5524861878 | B195: =IF(LEN(A195)-LEN(INT(A195))=0,0,LEN(A195)-LEN(INT(A195))-1) -> 15 | C195: 362
A196: ='Main page'!$B$16/C196 -> 0.5540166205 | B196: 15 | C196: =C195-1 -> 361
A197: ='Main page'!$B$16/C197 -> 0.5555555556 | B197: 15 | C197: 360
A198: ='Main page'!$B$16/C198 -> 0.5571030641 | B198: 15 | C198: 359
A199: ='Main page'!$B$16/C199 -> 0.5586592179 | B199: 15 | C199: 358
A200: ='Main page'!$B$16/C200 -> 0.5602240896 | B200: 15 | C200: 357
... 9801 more rows

Sheet Wd calc (hidden)
A1: Max segments allowed | B1: =ROUNDDOWN(MAX(MIN('Main page'!B6/B3,B5),1),0) -> 555
A2: Max segments allowed DGP | B2: =ROUNDDOWN(MAX(MIN('Main page'!B6/B4,B5),1),0) -> 444
A3: Min withdrawal value | B3: 200
A4: Min DGP withdrawal value | B4: 250
A5: Max withdrawal TOTAL | B5: 9999
A6: Payment frequency
A7: Monthly | B7: 12
A8: Quarterly | B8: 4
A9: Half Yearly | B9: 6
A10: Annual | B10: 1
A11: Total annual withdrawal | B11: =VLOOKUP(frequencytext,A7:$B$10,2,FALSE)*Withdrawalreg -> 2400
A12: WD divisible by segments | B12: =IF(ROUNDDOWN(Withdrawalreg/Segments,2)*Segments<B3,ROUNDUP(Withdrawalreg/Segments,2)*Segments,ROUNDDOWN(Withdrawalreg/Segments,2)*Segments) -> 200.49
A14: Value used in some calcs | B14: 100
A15: Value used in some calcs | B15: 99

Sheet Third option (hidden)
F2: Withdrawal
E3: # Segments | F3: =Withdrawalreg*'Wd calc'!B14 -> 20000
B4: Withdrawal value: | C4: =VLOOKUP(Segments3,E:F,2,FALSE)/'Wd calc'!B14 -> 200 | E4: ='Wd calc'!B1 -> 555 | F4: =IF(OR(ROUNDDOWN($F$3/$E4,0)*$E4>$F$3,ROUNDDOWN($F$3/$E4,0)*$E4<'Wd calc'!$B$3*'Wd calc'!$B$14,ROUNDDOWN($F$3/$E4,0)*$E4<$F$3-'Wd calc'!$B$15),0,ROUNDDOWN($F$3/$E4,0)*$E4) -> 0 | G4: =IF(F4=0,0,E4) -> 0
B5: Number of segments: | C5: =MAX(G:G) -> 500 | E5: =MAX(E4-1,1) -> 554 | F5: =IF(OR(ROUNDDOWN($F$3/$E5,0)*$E5>$F$3,ROUNDDOWN($F$3/$E5,0)*$E5<'Wd calc'!$B$3*'Wd calc'!$B$14,ROUNDDOWN($F$3/$E5,0)*$E5<$F$3-'Wd calc'!$B$15),0,ROUNDDOWN($F$3/$E5,0)*$E5) -> 0 | G5: =IF(F5=0,0,E5) -> 0
E6: 553 | F6: =IF(OR(ROUNDDOWN($F$3/$E6,0)*$E6>$F$3,ROUNDDOWN($F$3/$E6,0)*$E6<'Wd calc'!$B$3*'Wd calc'!$B$14,ROUNDDOWN($F$3/$E6,0)*$E6<$F$3-'Wd calc'!$B$15),0,ROUNDDOWN($F$3/$E6,0)*$E6) -> 0 | G6: 0
E7: 552 | F7: =IF(OR(ROUNDDOWN($F$3/$E7,0)*$E7>$F$3,ROUNDDOWN($F$3/$E7,0)*$E7<'Wd calc'!$B$3*'Wd calc'!$B$14,ROUNDDOWN($F$3/$E7,0)*$E7<$F$3-'Wd calc'!$B$15),0,ROUNDDOWN($F$3/$E7,0)*$E7) -> 0 | G7: 0
E8: 551 | F8: =IF(OR(ROUNDDOWN($F$3/$E8,0)*$E8>$F$3,ROUNDDOWN($F$3/$E8,0)*$E8<'Wd calc'!$B$3*'Wd calc'!$B$14,ROUNDDOWN($F$3/$E8,0)*$E8<$F$3-'Wd calc'!$B$15),0,ROUNDDOWN($F$3/$E8,0)*$E8) -> 0 | G8: 0
E9: 550 | F9: =IF(OR(ROUNDDOWN($F$3/$E9,0)*$E9>$F$3,ROUNDDOWN($F$3/$E9,0)*$E9<'Wd calc'!$B$3*'Wd calc'!$B$14,ROUNDDOWN($F$3/$E9,0)*$E9<$F$3-'Wd calc'!$B$15),0,ROUNDDOWN($F$3/$E9,0)*$E9) -> 0 | G9: 0
E10: 549 | F10: =IF(OR(ROUNDDOWN($F$3/$E10,0)*$E10>$F$3,ROUNDDOWN($F$3/$E10,0)*$E10<'Wd calc'!$B$3*'Wd calc'!$B$14,ROUNDDOWN($F$3/$E10,0)*$E10<$F$3-'Wd calc'!$B$15),0,ROUNDDOWN($F$3/$E10,0)*$E10) -> 0 | G10: 0
E11: 548 | F11: =IF(OR(ROUNDDOWN($F$3/$E11,0)*$E11>$F$3,ROUNDDOWN($F$3/$E11,0)*$E11<'Wd calc'!$B$3*'Wd calc'!$B$14,ROUNDDOWN($F$3/$E11,0)*$E11<$F$3-'Wd calc'!$B$15),0,ROUNDDOWN($F$3/$E11,0)*$E11) -> 0 | G11: 0
E12: 547 | F12: =IF(OR(ROUNDDOWN($F$3/$E12,0)*$E12>$F$3,ROUNDDOWN($F$3/$E12,0)*$E12<'Wd calc'!$B$3*'Wd calc'!$B$14,ROUNDDOWN($F$3/$E12,0)*$E12<$F$3-'Wd calc'!$B$15),0,ROUNDDOWN($F$3/$E12,0)*$E12) -> 0 | G12: 0
E13: 546 | F13: =IF(OR(ROUNDDOWN($F$3/$E13,0)*$E13>$F$3,ROUNDDOWN($F$3/$E13,0)*$E13<'Wd calc'!$B$3*'Wd calc'!$B$14,ROUNDDOWN($F$3/$E13,0)*$E13<$F$3-'Wd calc'!$B$15),0,ROUNDDOWN($F$3/$E13,0)*$E13) -> 0 | G13: 0
E14: 545 | F14: =IF(OR(ROUNDDOWN($F$3/$E14,0)*$E14>$F$3,ROUNDDOWN($F$3/$E14,0)*$E14<'Wd calc'!$B$3*'Wd calc'!$B$14,ROUNDDOWN($F$3/$E14,0)*$E14<$F$3-'Wd calc'!$B$15),0,ROUNDDOWN($F$3/$E14,0)*$E14) -> 0 | G14: 0
E15: 544 | F15: =IF(OR(ROUNDDOWN($F$3/$E15,0)*$E15>$F$3,ROUNDDOWN($F$3/$E15,0)*$E15<'Wd calc'!$B$3*'Wd calc'!$B$14,ROUNDDOWN($F$3/$E15,0)*$E15<$F$3-'Wd calc'!$B$15),0,ROUNDDOWN($F$3/$E15,0)*$E15) -> 0 | G15: 0
E16: 543 | F16: =IF(OR(ROUNDDOWN($F$3/$E16,0)*$E16>$F$3,ROUNDDOWN($F$3/$E16,0)*$E16<'Wd calc'!$B$3*'Wd calc'!$B$14,ROUNDDOWN($F$3/$E16,0)*$E16<$F$3-'Wd calc'!$B$15),0,ROUNDDOWN($F$3/$E16,0)*$E16) -> 0 | G16: 0
E17: 542 | F17: =IF(OR(ROUNDDOWN($F$3/$E17,0)*$E17>$F$3,ROUNDDOWN($F$3/$E17,0)*$E17<'Wd calc'!$B$3*'Wd calc'!$B$14,ROUNDDOWN($F$3/$E17,0)*$E17<$F$3-'Wd calc'!$B$15),0,ROUNDDOWN($F$3/$E17,0)*$E17) -> 0 | G17: 0
E18: 541 | F18: =IF(OR(ROUNDDOWN($F$3/$E18,0)*$E18>$F$3,ROUNDDOWN($F$3/$E18,0)*$E18<'Wd calc'!$B$3*'Wd calc'!$B$14,ROUNDDOWN($F$3/$E18,0)*$E18<$F$3-'Wd calc'!$B$15),0,ROUNDDOWN($F$3/$E18,0)*$E18) -> 0 | G18: 0
E19: 540 | F19: =IF(OR(ROUNDDOWN($F$3/$E19,0)*$E19>$F$3,ROUNDDOWN($F$3/$E19,0)*$E19<'Wd calc'!$B$3*'Wd calc'!$B$14,ROUNDDOWN($F$3/$E19,0)*$E19<$F$3-'Wd calc'!$B$15),0,ROUNDDOWN($F$3/$E19,0)*$E19) -> 0 | G19: 0
E20: 539 | F20: =IF(OR(ROUNDDOWN($F$3/$E20,0)*$E20>$F$3,ROUNDDOWN($F$3/$E20,0)*$E20<'Wd calc'!$B$3*'Wd calc'!$B$14,ROUNDDOWN($F$3/$E20,0)*$E20<$F$3-'Wd calc'!$B$15),0,ROUNDDOWN($F$3/$E20,0)*$E20) -> 0 | G20: 0
E21: 538 | F21: =IF(OR(ROUNDDOWN($F$3/$E21,0)*$E21>$F$3,ROUNDDOWN($F$3/$E21,0)*$E21<'Wd calc'!$B$3*'Wd calc'!$B$14,ROUNDDOWN($F$3/$E21,0)*$E21<$F$3-'Wd calc'!$B$15),0,ROUNDDOWN($F$3/$E21,0)*$E21) -> 0 | G21: 0
E22: 537 | F22: =IF(OR(ROUNDDOWN($F$3/$E22,0)*$E22>$F$3,ROUNDDOWN($F$3/$E22,0)*$E22<'Wd calc'!$B$3*'Wd calc'!$B$14,ROUNDDOWN($F$3/$E22,0)*$E22<$F$3-'Wd calc'!$B$15),0,ROUNDDOWN($F$3/$E22,0)*$E22) -> 0 | G22: 0
E23: 536 | F23: =IF(OR(ROUNDDOWN($F$3/$E23,0)*$E23>$F$3,ROUNDDOWN($F$3/$E23,0)*$E23<'Wd calc'!$B$3*'Wd calc'!$B$14,ROUNDDOWN($F$3/$E23,0)*$E23<$F$3-'Wd calc'!$B$15),0,ROUNDDOWN($F$3/$E23,0)*$E23) -> 0 | G23: 0
E24: 535 | F24: =IF(OR(ROUNDDOWN($F$3/$E24,0)*$E24>$F$3,ROUNDDOWN($F$3/$E24,0)*$E24<'Wd calc'!$B$3*'Wd calc'!$B$14,ROUNDDOWN($F$3/$E24,0)*$E24<$F$3-'Wd calc'!$B$15),0,ROUNDDOWN($F$3/$E24,0)*$E24) -> 0 | G24: 0
E25: 534 | F25: =IF(OR(ROUNDDOWN($F$3/$E25,0)*$E25>$F$3,ROUNDDOWN($F$3/$E25,0)*$E25<'Wd calc'!$B$3*'Wd calc'!$B$14,ROUNDDOWN($F$3/$E25,0)*$E25<$F$3-'Wd calc'!$B$15),0,ROUNDDOWN($F$3/$E25,0)*$E25) -> 0 | G25: 0
E26: 533 | F26: =IF(OR(ROUNDDOWN($F$3/$E26,0)*$E26>$F$3,ROUNDDOWN($F$3/$E26,0)*$E26<'Wd calc'!$B$3*'Wd calc'!$B$14,ROUNDDOWN($F$3/$E26,0)*$E26<$F$3-'Wd calc'!$B$15),0,ROUNDDOWN($F$3/$E26,0)*$E26) -> 0 | G26: 0
E27: 532 | F27: =IF(OR(ROUNDDOWN($F$3/$E27,0)*$E27>$F$3,ROUNDDOWN($F$3/$E27,0)*$E27<'Wd calc'!$B$3*'Wd calc'!$B$14,ROUNDDOWN($F$3/$E27,0)*$E27<$F$3-'Wd calc'!$B$15),0,ROUNDDOWN($F$3/$E27,0)*$E27) -> 0 | G27: 0
E28: 531 | F28: =IF(OR(ROUNDDOWN($F$3/$E28,0)*$E28>$F$3,ROUNDDOWN($F$3/$E28,0)*$E28<'Wd calc'!$B$3*'Wd calc'!$B$14,ROUNDDOWN($F$3/$E28,0)*$E28<$F$3-'Wd calc'!$B$15),0,ROUNDDOWN($F$3/$E28,0)*$E28) -> 0 | G28: 0
E29: 530 | F29: =IF(OR(ROUNDDOWN($F$3/$E29,0)*$E29>$F$3,ROUNDDOWN($F$3/$E29,0)*$E29<'Wd calc'!$B$3*'Wd calc'!$B$14,ROUNDDOWN($F$3/$E29,0)*$E29<$F$3-'Wd calc'!$B$15),0,ROUNDDOWN($F$3/$E29,0)*$E29) -> 0 | G29: 0
E30: 529 | F30: =IF(OR(ROUNDDOWN($F$3/$E30,0)*$E30>$F$3,ROUNDDOWN($F$3/$E30,0)*$E30<'Wd calc'!$B$3*'Wd calc'!$B$14,ROUNDDOWN($F$3/$E30,0)*$E30<$F$3-'Wd calc'!$B$15),0,ROUNDDOWN($F$3/$E30,0)*$E30) -> 0 | G30: 0
E31: 528 | F31: =IF(OR(ROUNDDOWN($F$3/$E31,0)*$E31>$F$3,ROUNDDOWN($F$3/$E31,0)*$E31<'Wd calc'!$B$3*'Wd calc'!$B$14,ROUNDDOWN($F$3/$E31,0)*$E31<$F$3-'Wd calc'!$B$15),0,ROUNDDOWN($F$3/$E31,0)*$E31) -> 0 | G31: 0
E32: 527 | F32: =IF(OR(ROUNDDOWN($F$3/$E32,0)*$E32>$F$3,ROUNDDOWN($F$3/$E32,0)*$E32<'Wd calc'!$B$3*'Wd calc'!$B$14,ROUNDDOWN($F$3/$E32,0)*$E32<$F$3-'Wd calc'!$B$15),0,ROUNDDOWN($F$3/$E32,0)*$E32) -> 0 | G32: 0
E33: 526 | F33: =IF(OR(ROUNDDOWN($F$3/$E33,0)*$E33>$F$3,ROUNDDOWN($F$3/$E33,0)*$E33<'Wd calc'!$B$3*'Wd calc'!$B$14,ROUNDDOWN($F$3/$E33,0)*$E33<$F$3-'Wd calc'!$B$15),0,ROUNDDOWN($F$3/$E33,0)*$E33) -> 0 | G33: 0
E34: 525 | F34: =IF(OR(ROUNDDOWN($F$3/$E34,0)*$E34>$F$3,ROUNDDOWN($F$3/$E34,0)*$E34<'Wd calc'!$B$3*'Wd calc'!$B$14,ROUNDDOWN($F$3/$E34,0)*$E34<$F$3-'Wd calc'!$B$15),0,ROUNDDOWN($F$3/$E34,0)*$E34) -> 0 | G34: 0
E35: 524 | F35: =IF(OR(ROUNDDOWN($F$3/$E35,0)*$E35>$F$3,ROUNDDOWN($F$3/$E35,0)*$E35<'Wd calc'!$B$3*'Wd calc'!$B$14,ROUNDDOWN($F$3/$E35,0)*$E35<$F$3-'Wd calc'!$B$15),0,ROUNDDOWN($F$3/$E35,0)*$E35) -> 0 | G35: 0
E36: 523 | F36: =IF(OR(ROUNDDOWN($F$3/$E36,0)*$E36>$F$3,ROUNDDOWN($F$3/$E36,0)*$E36<'Wd calc'!$B$3*'Wd calc'!$B$14,ROUNDDOWN($F$3/$E36,0)*$E36<$F$3-'Wd calc'!$B$15),0,ROUNDDOWN($F$3/$E36,0)*$E36) -> 0 | G36: 0
E37: 522 | F37: =IF(OR(ROUNDDOWN($F$3/$E37,0)*$E37>$F$3,ROUNDDOWN($F$3/$E37,0)*$E37<'Wd calc'!$B$3*'Wd calc'!$B$14,ROUNDDOWN($F$3/$E37,0)*$E37<$F$3-'Wd calc'!$B$15),0,ROUNDDOWN($F$3/$E37,0)*$E37) -> 0 | G37: 0
E38: 521 | F38: =IF(OR(ROUNDDOWN($F$3/$E38,0)*$E38>$F$3,ROUNDDOWN($F$3/$E38,0)*$E38<'Wd calc'!$B$3*'Wd calc'!$B$14,ROUNDDOWN($F$3/$E38,0)*$E38<$F$3-'Wd calc'!$B$15),0,ROUNDDOWN($F$3/$E38,0)*$E38) -> 0 | G38: 0
E39: 520 | F39: =IF(OR(ROUNDDOWN($F$3/$E39,0)*$E39>$F$3,ROUNDDOWN($F$3/$E39,0)*$E39<'Wd calc'!$B$3*'Wd calc'!$B$14,ROUNDDOWN($F$3/$E39,0)*$E39<$F$3-'Wd calc'!$B$15),0,ROUNDDOWN($F$3/$E39,0)*$E39) -> 0 | G39: 0
E40: 519 | F40: =IF(OR(ROUNDDOWN($F$3/$E40,0)*$E40>$F$3,ROUNDDOWN($F$3/$E40,0)*$E40<'Wd calc'!$B$3*'Wd calc'!$B$14,ROUNDDOWN($F$3/$E40,0)*$E40<$F$3-'Wd calc'!$B$15),0,ROUNDDOWN($F$3/$E40,0)*$E40) -> 0 | G40: 0
E41: 518 | F41: =IF(OR(ROUNDDOWN($F$3/$E41,0)*$E41>$F$3,ROUNDDOWN($F$3/$E41,0)*$E41<'Wd calc'!$B$3*'Wd calc'!$B$14,ROUNDDOWN($F$3/$E41,0)*$E41<$F$3-'Wd calc'!$B$15),0,ROUNDDOWN($F$3/$E41,0)*$E41) -> 0 | G41: 0
E42: 517 | F42: =IF(OR(ROUNDDOWN($F$3/$E42,0)*$E42>$F$3,ROUNDDOWN($F$3/$E42,0)*$E42<'Wd calc'!$B$3*'Wd calc'!$B$14,ROUNDDOWN($F$3/$E42,0)*$E42<$F$3-'Wd calc'!$B$15),0,ROUNDDOWN($F$3/$E42,0)*$E42) -> 0 | G42: 0
E43: 516 | F43: =IF(OR(ROUNDDOWN($F$3/$E43,0)*$E43>$F$3,ROUNDDOWN($F$3/$E43,0)*$E43<'Wd calc'!$B$3*'Wd calc'!$B$14,ROUNDDOWN($F$3/$E43,0)*$E43<$F$3-'Wd calc'!$B$15),0,ROUNDDOWN($F$3/$E43,0)*$E43) -> 0 | G43: 0
E44: 515 | F44: =IF(OR(ROUNDDOWN($F$3/$E44,0)*$E44>$F$3,ROUNDDOWN($F$3/$E44,0)*$E44<'Wd calc'!$B$3*'Wd calc'!$B$14,ROUNDDOWN($F$3/$E44,0)*$E44<$F$3-'Wd calc'!$B$15),0,ROUNDDOWN($F$3/$E44,0)*$E44) -> 0 | G44: 0
E45: 514 | F45: =IF(OR(ROUNDDOWN($F$3/$E45,0)*$E45>$F$3,ROUNDDOWN($F$3/$E45,0)*$E45<'Wd calc'!$B$3*'Wd calc'!$B$14,ROUNDDOWN($F$3/$E45,0)*$E45<$F$3-'Wd calc'!$B$15),0,ROUNDDOWN($F$3/$E45,0)*$E45) -> 0 | G45: 0
E46: 513 | F46: =IF(OR(ROUNDDOWN($F$3/$E46,0)*$E46>$F$3,ROUNDDOWN($F$3/$E46,0)*$E46<'Wd calc'!$B$3*'Wd calc'!$B$14,ROUNDDOWN($F$3/$E46,0)*$E46<$F$3-'Wd calc'!$B$15),0,ROUNDDOWN($F$3/$E46,0)*$E46) -> 0 | G46: 0
E47: 512 | F47: =IF(OR(ROUNDDOWN($F$3/$E47,0)*$E47>$F$3,ROUNDDOWN($F$3/$E47,0)*$E47<'Wd calc'!$B$3*'Wd calc'!$B$14,ROUNDDOWN($F$3/$E47,0)*$E47<$F$3-'Wd calc'!$B$15),0,ROUNDDOWN($F$3/$E47,0)*$E47) -> 0 | G47: 0
E48: 511 | F48: =IF(OR(ROUNDDOWN($F$3/$E48,0)*$E48>$F$3,ROUNDDOWN($F$3/$E48,0)*$E48<'Wd calc'!$B$3*'Wd calc'!$B$14,ROUNDDOWN($F$3/$E48,0)*$E48<$F$3-'Wd calc'!$B$15),0,ROUNDDOWN($F$3/$E48,0)*$E48) -> 0 | G48: 0
E49: 510 | F49: =IF(OR(ROUNDDOWN($F$3/$E49,0)*$E49>$F$3,ROUNDDOWN($F$3/$E49,0)*$E49<'Wd calc'!$B$3*'Wd calc'!$B$14,ROUNDDOWN($F$3/$E49,0)*$E49<$F$3-'Wd calc'!$B$15),0,ROUNDDOWN($F$3/$E49,0)*$E49) -> 0 | G49: 0
E50: 509 | F50: =IF(OR(ROUNDDOWN($F$3/$E50,0)*$E50>$F$3,ROUNDDOWN($F$3/$E50,0)*$E50<'Wd calc'!$B$3*'Wd calc'!$B$14,ROUNDDOWN($F$3/$E50,0)*$E50<$F$3-'Wd calc'!$B$15),0,ROUNDDOWN($F$3/$E50,0)*$E50) -> 0 | G50: 0
E51: 508 | F51: =IF(OR(ROUNDDOWN($F$3/$E51,0)*$E51>$F$3,ROUNDDOWN($F$3/$E51,0)*$E51<'Wd calc'!$B$3*'Wd calc'!$B$14,ROUNDDOWN($F$3/$E51,0)*$E51<$F$3-'Wd calc'!$B$15),0,ROUNDDOWN($F$3/$E51,0)*$E51) -> 0 | G51: 0
E52: 507 | F52: =IF(OR(ROUNDDOWN($F$3/$E52,0)*$E52>$F$3,ROUNDDOWN($F$3/$E52,0)*$E52<'Wd calc'!$B$3*'Wd calc'!$B$14,ROUNDDOWN($F$3/$E52,0)*$E52<$F$3-'Wd calc'!$B$15),0,ROUNDDOWN($F$3/$E52,0)*$E52) -> 0 | G52: 0
E53: 506 | F53: =IF(OR(ROUNDDOWN($F$3/$E53,0)*$E53>$F$3,ROUNDDOWN($F$3/$E53,0)*$E53<'Wd calc'!$B$3*'Wd calc'!$B$14,ROUNDDOWN($F$3/$E53,0)*$E53<$F$3-'Wd calc'!$B$15),0,ROUNDDOWN($F$3/$E53,0)*$E53) -> 0 | G53: 0
E54: 505 | F54: =IF(OR(ROUNDDOWN($F$3/$E54,0)*$E54>$F$3,ROUNDDOWN($F$3/$E54,0)*$E54<'Wd calc'!$B$3*'Wd calc'!$B$14,ROUNDDOWN($F$3/$E54,0)*$E54<$F$3-'Wd calc'!$B$15),0,ROUNDDOWN($F$3/$E54,0)*$E54) -> 0 | G54: 0
E55: 504 | F55: =IF(OR(ROUNDDOWN($F$3/$E55,0)*$E55>$F$3,ROUNDDOWN($F$3/$E55,0)*$E55<'Wd calc'!$B$3*'Wd calc'!$B$14,ROUNDDOWN($F$3/$E55,0)*$E55<$F$3-'Wd calc'!$B$15),0,ROUNDDOWN($F$3/$E55,0)*$E55) -> 0 | G55: 0
E56: 503 | F56: =IF(OR(ROUNDDOWN($F$3/$E56,0)*$E56>$F$3,ROUNDDOWN($F$3/$E56,0)*$E56<'Wd calc'!$B$3*'Wd calc'!$B$14,ROUNDDOWN($F$3/$E56,0)*$E56<$F$3-'Wd calc'!$B$15),0,ROUNDDOWN($F$3/$E56,0)*$E56) -> 0 | G56: 0
E57: 502 | F57: =IF(OR(ROUNDDOWN($F$3/$E57,0)*$E57>$F$3,ROUNDDOWN($F$3/$E57,0)*$E57<'Wd calc'!$B$3*'Wd calc'!$B$14,ROUNDDOWN($F$3/$E57,0)*$E57<$F$3-'Wd calc'!$B$15),0,ROUNDDOWN($F$3/$E57,0)*$E57) -> 0 | G57: 0
E58: 501 | F58: =IF(OR(ROUNDDOWN($F$3/$E58,0)*$E58>$F$3,ROUNDDOWN($F$3/$E58,0)*$E58<'Wd calc'!$B$3*'Wd calc'!$B$14,ROUNDDOWN($F$3/$E58,0)*$E58<$F$3-'Wd calc'!$B$15),0,ROUNDDOWN($F$3/$E58,0)*$E58) -> 0 | G58: 0
E59: 500 | F59: =IF(OR(ROUNDDOWN($F$3/$E59,0)*$E59>$F$3,ROUNDDOWN($F$3/$E59,0)*$E59<'Wd calc'!$B$3*'Wd calc'!$B$14,ROUNDDOWN($F$3/$E59,0)*$E59<$F$3-'Wd calc'!$B$15),0,ROUNDDOWN($F$3/$E59,0)*$E59) -> 20000 | G59: 500
E60: 499 | F60: =IF(OR(ROUNDDOWN($F$3/$E60,0)*$E60>$F$3,ROUNDDOWN($F$3/$E60,0)*$E60<'Wd calc'!$B$3*'Wd calc'!$B$14,ROUNDDOWN($F$3/$E60,0)*$E60<$F$3-'Wd calc'!$B$15),0,ROUNDDOWN($F$3/$E60,0)*$E60) -> 0 | G60: 0
E61: 498 | F61: =IF(OR(ROUNDDOWN($F$3/$E61,0)*$E61>$F$3,ROUNDDOWN($F$3/$E61,0)*$E61<'Wd calc'!$B$3*'Wd calc'!$B$14,ROUNDDOWN($F$3/$E61,0)*$E61<$F$3-'Wd calc'!$B$15),0,ROUNDDOWN($F$3/$E61,0)*$E61) -> 0 | G61: 0
E62: 497 | F62: =IF(OR(ROUNDDOWN($F$3/$E62,0)*$E62>$F$3,ROUNDDOWN($F$3/$E62,0)*$E62<'Wd calc'!$B$3*'Wd calc'!$B$14,ROUNDDOWN($F$3/$E62,0)*$E62<$F$3-'Wd calc'!$B$15),0,ROUNDDOWN($F$3/$E62,0)*$E62) -> 0 | G62: 0
E63: 496 | F63: =IF(OR(ROUNDDOWN($F$3/$E63,0)*$E63>$F$3,ROUNDDOWN($F$3/$E63,0)*$E63<'Wd calc'!$B$3*'Wd calc'!$B$14,ROUNDDOWN($F$3/$E63,0)*$E63<$F$3-'Wd calc'!$B$15),0,ROUNDDOWN($F$3/$E63,0)*$E63) -> 0 | G63: 0
E64: 495 | F64: =IF(OR(ROUNDDOWN($F$3/$E64,0)*$E64>$F$3,ROUNDDOWN($F$3/$E64,0)*$E64<'Wd calc'!$B$3*'Wd calc'!$B$14,ROUNDDOWN($F$3/$E64,0)*$E64<$F$3-'Wd calc'!$B$15),0,ROUNDDOWN($F$3/$E64,0)*$E64) -> 0 | G64: 0
E65: 494 | F65: =IF(OR(ROUNDDOWN($F$3/$E65,0)*$E65>$F$3,ROUNDDOWN($F$3/$E65,0)*$E65<'Wd calc'!$B$3*'Wd calc'!$B$14,ROUNDDOWN($F$3/$E65,0)*$E65<$F$3-'Wd calc'!$B$15),0,ROUNDDOWN($F$3/$E65,0)*$E65) -> 0 | G65: 0
E66: 493 | F66: =IF(OR(ROUNDDOWN($F$3/$E66,0)*$E66>$F$3,ROUNDDOWN($F$3/$E66,0)*$E66<'Wd calc'!$B$3*'Wd calc'!$B$14,ROUNDDOWN($F$3/$E66,0)*$E66<$F$3-'Wd calc'!$B$15),0,ROUNDDOWN($F$3/$E66,0)*$E66) -> 0 | G66: 0
E67: 492 | F67: =IF(OR(ROUNDDOWN($F$3/$E67,0)*$E67>$F$3,ROUNDDOWN($F$3/$E67,0)*$E67<'Wd calc'!$B$3*'Wd calc'!$B$14,ROUNDDOWN($F$3/$E67,0)*$E67<$F$3-'Wd calc'!$B$15),0,ROUNDDOWN($F$3/$E67,0)*$E67) -> 0 | G67: 0
E68: 491 | F68: =IF(OR(ROUNDDOWN($F$3/$E68,0)*$E68>$F$3,ROUNDDOWN($F$3/$E68,0)*$E68<'Wd calc'!$B$3*'Wd calc'!$B$14,ROUNDDOWN($F$3/$E68,0)*$E68<$F$3-'Wd calc'!$B$15),0,ROUNDDOWN($F$3/$E68,0)*$E68) -> 0 | G68: 0
E69: =MAX(E68-1,1) -> 490 | F69: =IF(OR(ROUNDDOWN($F$3/$E69,0)*$E69>$F$3,ROUNDDOWN($F$3/$E69,0)*$E69<'Wd calc'!$B$3*'Wd calc'!$B$14,ROUNDDOWN($F$3/$E69,0)*$E69<$F$3-'Wd calc'!$B$15),0,ROUNDDOWN($F$3/$E69,0)*$E69) -> 0 | G69: =IF(F69=0,0,E69) -> 0
E70: 489 | F70: =IF(OR(ROUNDDOWN($F$3/$E70,0)*$E70>$F$3,ROUNDDOWN($F$3/$E70,0)*$E70<'Wd calc'!$B$3*'Wd calc'!$B$14,ROUNDDOWN($F$3/$E70,0)*$E70<$F$3-'Wd calc'!$B$15),0,ROUNDDOWN($F$3/$E70,0)*$E70) -> 0 | G70: 0
E71: 488 | F71: =IF(OR(ROUNDDOWN($F$3/$E71,0)*$E71>$F$3,ROUNDDOWN($F$3/$E71,0)*$E71<'Wd calc'!$B$3*'Wd calc'!$B$14,ROUNDDOWN($F$3/$E71,0)*$E71<$F$3-'Wd calc'!$B$15),0,ROUNDDOWN($F$3/$E71,0)*$E71) -> 0 | G71: 0
E72: 487 | F72: =IF(OR(ROUNDDOWN($F$3/$E72,0)*$E72>$F$3,ROUNDDOWN($F$3/$E72,0)*$E72<'Wd calc'!$B$3*'Wd calc'!$B$14,ROUNDDOWN($F$3/$E72,0)*$E72<$F$3-'Wd calc'!$B$15),0,ROUNDDOWN($F$3/$E72,0)*$E72) -> 0 | G72: 0
E73: 486 | F73: =IF(OR(ROUNDDOWN($F$3/$E73,0)*$E73>$F$3,ROUNDDOWN($F$3/$E73,0)*$E73<'Wd calc'!$B$3*'Wd calc'!$B$14,ROUNDDOWN($F$3/$E73,0)*$E73<$F$3-'Wd calc'!$B$15),0,ROUNDDOWN($F$3/$E73,0)*$E73) -> 0 | G73: 0
E74: 485 | F74: =IF(OR(ROUNDDOWN($F$3/$E74,0)*$E74>$F$3,ROUNDDOWN($F$3/$E74,0)*$E74<'Wd calc'!$B$3*'Wd calc'!$B$14,ROUNDDOWN($F$3/$E74,0)*$E74<$F$3-'Wd calc'!$B$15),0,ROUNDDOWN($F$3/$E74,0)*$E74) -> 0 | G74: 0
E75: 484 | F75: =IF(OR(ROUNDDOWN($F$3/$E75,0)*$E75>$F$3,ROUNDDOWN($F$3/$E75,0)*$E75<'Wd calc'!$B$3*'Wd calc'!$B$14,ROUNDDOWN($F$3/$E75,0)*$E75<$F$3-'Wd calc'!$B$15),0,ROUNDDOWN($F$3/$E75,0)*$E75) -> 0 | G75: 0
E76: 483 | F76: =IF(OR(ROUNDDOWN($F$3/$E76,0)*$E76>$F$3,ROUNDDOWN($F$3/$E76,0)*$E76<'Wd calc'!$B$3*'Wd calc'!$B$14,ROUNDDOWN($F$3/$E76,0)*$E76<$F$3-'Wd calc'!$B$15),0,ROUNDDOWN($F$3/$E76,0)*$E76) -> 0 | G76: 0
E77: 482 | F77: =IF(OR(ROUNDDOWN($F$3/$E77,0)*$E77>$F$3,ROUNDDOWN($F$3/$E77,0)*$E77<'Wd calc'!$B$3*'Wd calc'!$B$14,ROUNDDOWN($F$3/$E77,0)*$E77<$F$3-'Wd calc'!$B$15),0,ROUNDDOWN($F$3/$E77,0)*$E77) -> 0 | G77: 0
E78: 481 | F78: =IF(OR(ROUNDDOWN($F$3/$E78,0)*$E78>$F$3,ROUNDDOWN($F$3/$E78,0)*$E78<'Wd calc'!$B$3*'Wd calc'!$B$14,ROUNDDOWN($F$3/$E78,0)*$E78<$F$3-'Wd calc'!$B$15),0,ROUNDDOWN($F$3/$E78,0)*$E78) -> 0 | G78: 0
E79: 480 | F79: =IF(OR(ROUNDDOWN($F$3/$E79,0)*$E79>$F$3,ROUNDDOWN($F$3/$E79,0)*$E79<'Wd calc'!$B$3*'Wd calc'!$B$14,ROUNDDOWN($F$3/$E79,0)*$E79<$F$3-'Wd calc'!$B$15),0,ROUNDDOWN($F$3/$E79,0)*$E79) -> 0 | G79: 0
E80: 479 | F80: =IF(OR(ROUNDDOWN($F$3/$E80,0)*$E80>$F$3,ROUNDDOWN($F$3/$E80,0)*$E80<'Wd calc'!$B$3*'Wd calc'!$B$14,ROUNDDOWN($F$3/$E80,0)*$E80<$F$3-'Wd calc'!$B$15),0,ROUNDDOWN($F$3/$E80,0)*$E80) -> 0 | G80: 0
E81: 478 | F81: =IF(OR(ROUNDDOWN($F$3/$E81,0)*$E81>$F$3,ROUNDDOWN($F$3/$E81,0)*$E81<'Wd calc'!$B$3*'Wd calc'!$B$14,ROUNDDOWN($F$3/$E81,0)*$E81<$F$3-'Wd calc'!$B$15),0,ROUNDDOWN($F$3/$E81,0)*$E81) -> 0 | G81: 0
E82: 477 | F82: =IF(OR(ROUNDDOWN($F$3/$E82,0)*$E82>$F$3,ROUNDDOWN($F$3/$E82,0)*$E82<'Wd calc'!$B$3*'Wd calc'!$B$14,ROUNDDOWN($F$3/$E82,0)*$E82<$F$3-'Wd calc'!$B$15),0,ROUNDDOWN($F$3/$E82,0)*$E82) -> 0 | G82: 0
E83: 476 | F83: =IF(OR(ROUNDDOWN($F$3/$E83,0)*$E83>$F$3,ROUNDDOWN($F$3/$E83,0)*$E83<'Wd calc'!$B$3*'Wd calc'!$B$14,ROUNDDOWN($F$3/$E83,0)*$E83<$F$3-'Wd calc'!$B$15),0,ROUNDDOWN($F$3/$E83,0)*$E83) -> 0 | G83: 0
E84: 475 | F84: =IF(OR(ROUNDDOWN($F$3/$E84,0)*$E84>$F$3,ROUNDDOWN($F$3/$E84,0)*$E84<'Wd calc'!$B$3*'Wd calc'!$B$14,ROUNDDOWN($F$3/$E84,0)*$E84<$F$3-'Wd calc'!$B$15),0,ROUNDDOWN($F$3/$E84,0)*$E84) -> 0 | G84: 0
E85: 474 | F85: =IF(OR(ROUNDDOWN($F$3/$E85,0)*$E85>$F$3,ROUNDDOWN($F$3/$E85,0)*$E85<'Wd calc'!$B$3*'Wd calc'!$B$14,ROUNDDOWN($F$3/$E85,0)*$E85<$F$3-'Wd calc'!$B$15),0,ROUNDDOWN($F$3/$E85,0)*$E85) -> 0 | G85: 0
E86: 473 | F86: =IF(OR(ROUNDDOWN($F$3/$E86,0)*$E86>$F$3,ROUNDDOWN($F$3/$E86,0)*$E86<'Wd calc'!$B$3*'Wd calc'!$B$14,ROUNDDOWN($F$3/$E86,0)*$E86<$F$3-'Wd calc'!$B$15),0,ROUNDDOWN($F$3/$E86,0)*$E86) -> 0 | G86: 0
E87: 472 | F87: =IF(OR(ROUNDDOWN($F$3/$E87,0)*$E87>$F$3,ROUNDDOWN($F$3/$E87,0)*$E87<'Wd calc'!$B$3*'Wd calc'!$B$14,ROUNDDOWN($F$3/$E87,0)*$E87<$F$3-'Wd calc'!$B$15),0,ROUNDDOWN($F$3/$E87,0)*$E87) -> 0 | G87: 0
E88: 471 | F88: =IF(OR(ROUNDDOWN($F$3/$E88,0)*$E88>$F$3,ROUNDDOWN($F$3/$E88,0)*$E88<'Wd calc'!$B$3*'Wd calc'!$B$14,ROUNDDOWN($F$3/$E88,0)*$E88<$F$3-'Wd calc'!$B$15),0,ROUNDDOWN($F$3/$E88,0)*$E88) -> 0 | G88: 0
E89: 470 | F89: =IF(OR(ROUNDDOWN($F$3/$E89,0)*$E89>$F$3,ROUNDDOWN($F$3/$E89,0)*$E89<'Wd calc'!$B$3*'Wd calc'!$B$14,ROUNDDOWN($F$3/$E89,0)*$E89<$F$3-'Wd calc'!$B$15),0,ROUNDDOWN($F$3/$E89,0)*$E89) -> 0 | G89: 0
E90: 469 | F90: =IF(OR(ROUNDDOWN($F$3/$E90,0)*$E90>$F$3,ROUNDDOWN($F$3/$E90,0)*$E90<'Wd calc'!$B$3*'Wd calc'!$B$14,ROUNDDOWN($F$3/$E90,0)*$E90<$F$3-'Wd calc'!$B$15),0,ROUNDDOWN($F$3/$E90,0)*$E90) -> 0 | G90: 0
E91: 468 | F91: =IF(OR(ROUNDDOWN($F$3/$E91,0)*$E91>$F$3,ROUNDDOWN($F$3/$E91,0)*$E91<'Wd calc'!$B$3*'Wd calc'!$B$14,ROUNDDOWN($F$3/$E91,0)*$E91<$F$3-'Wd calc'!$B$15),0,ROUNDDOWN($F$3/$E91,0)*$E91) -> 0 | G91: 0
E92: 467 | F92: =IF(OR(ROUNDDOWN($F$3/$E92,0)*$E92>$F$3,ROUNDDOWN($F$3/$E92,0)*$E92<'Wd calc'!$B$3*'Wd calc'!$B$14,ROUNDDOWN($F$3/$E92,0)*$E92<$F$3-'Wd calc'!$B$15),0,ROUNDDOWN($F$3/$E92,0)*$E92) -> 0 | G92: 0
E93: 466 | F93: =IF(OR(ROUNDDOWN($F$3/$E93,0)*$E93>$F$3,ROUNDDOWN($F$3/$E93,0)*$E93<'Wd calc'!$B$3*'Wd calc'!$B$14,ROUNDDOWN($F$3/$E93,0)*$E93<$F$3-'Wd calc'!$B$15),0,ROUNDDOWN($F$3/$E93,0)*$E93) -> 0 | G93: 0
E94: 465 | F94: =IF(OR(ROUNDDOWN($F$3/$E94,0)*$E94>$F$3,ROUNDDOWN($F$3/$E94,0)*$E94<'Wd calc'!$B$3*'Wd calc'!$B$14,ROUNDDOWN($F$3/$E94,0)*$E94<$F$3-'Wd calc'!$B$15),0,ROUNDDOWN($F$3/$E94,0)*$E94) -> 0 | G94: 0
E95: 464 | F95: =IF(OR(ROUNDDOWN($F$3/$E95,0)*$E95>$F$3,ROUNDDOWN($F$3/$E95,0)*$E95<'Wd calc'!$B$3*'Wd calc'!$B$14,ROUNDDOWN($F$3/$E95,0)*$E95<$F$3-'Wd calc'!$B$15),0,ROUNDDOWN($F$3/$E95,0)*$E95) -> 0 | G95: 0
E96: 463 | F96: =IF(OR(ROUNDDOWN($F$3/$E96,0)*$E96>$F$3,ROUNDDOWN($F$3/$E96,0)*$E96<'Wd calc'!$B$3*'Wd calc'!$B$14,ROUNDDOWN($F$3/$E96,0)*$E96<$F$3-'Wd calc'!$B$15),0,ROUNDDOWN($F$3/$E96,0)*$E96) -> 0 | G96: 0
E97: 462 | F97: =IF(OR(ROUNDDOWN($F$3/$E97,0)*$E97>$F$3,ROUNDDOWN($F$3/$E97,0)*$E97<'Wd calc'!$B$3*'Wd calc'!$B$14,ROUNDDOWN($F$3/$E97,0)*$E97<$F$3-'Wd calc'!$B$15),0,ROUNDDOWN($F$3/$E97,0)*$E97) -> 0 | G97: 0
E98: 461 | F98: =IF(OR(ROUNDDOWN($F$3/$E98,0)*$E98>$F$3,ROUNDDOWN($F$3/$E98,0)*$E98<'Wd calc'!$B$3*'Wd calc'!$B$14,ROUNDDOWN($F$3/$E98,0)*$E98<$F$3-'Wd calc'!$B$15),0,ROUNDDOWN($F$3/$E98,0)*$E98) -> 0 | G98: 0
E99: 460 | F99: =IF(OR(ROUNDDOWN($F$3/$E99,0)*$E99>$F$3,ROUNDDOWN($F$3/$E99,0)*$E99<'Wd calc'!$B$3*'Wd calc'!$B$14,ROUNDDOWN($F$3/$E99,0)*$E99<$F$3-'Wd calc'!$B$15),0,ROUNDDOWN($F$3/$E99,0)*$E99) -> 0 | G99: 0
E100: 459 | F100: =IF(OR(ROUNDDOWN($F$3/$E100,0)*$E100>$F$3,ROUNDDOWN($F$3/$E100,0)*$E100<'Wd calc'!$B$3*'Wd calc'!$B$14,ROUNDDOWN($F$3/$E100,0)*$E100<$F$3-'Wd calc'!$B$15),0,ROUNDDOWN($F$3/$E100,0)*$E100) -> 0 | G100: 0
E101: 458 | F101: =IF(OR(ROUNDDOWN($F$3/$E101,0)*$E101>$F$3,ROUNDDOWN($F$3/$E101,0)*$E101<'Wd calc'!$B$3*'Wd calc'!$B$14,ROUNDDOWN($F$3/$E101,0)*$E101<$F$3-'Wd calc'!$B$15),0,ROUNDDOWN($F$3/$E101,0)*$E101) -> 0 | G101: 0
E102: 457 | F102: =IF(OR(ROUNDDOWN($F$3/$E102,0)*$E102>$F$3,ROUNDDOWN($F$3/$E102,0)*$E102<'Wd calc'!$B$3*'Wd calc'!$B$14,ROUNDDOWN($F$3/$E102,0)*$E102<$F$3-'Wd calc'!$B$15),0,ROUNDDOWN($F$3/$E102,0)*$E102) -> 0 | G102: 0
E103: 456 | F103: =IF(OR(ROUNDDOWN($F$3/$E103,0)*$E103>$F$3,ROUNDDOWN($F$3/$E103,0)*$E103<'Wd calc'!$B$3*'Wd calc'!$B$14,ROUNDDOWN($F$3/$E103,0)*$E103<$F$3-'Wd calc'!$B$15),0,ROUNDDOWN($F$3/$E103,0)*$E103) -> 0 | G103: 0
E104: 455 | F104: =IF(OR(ROUNDDOWN($F$3/$E104,0)*$E104>$F$3,ROUNDDOWN($F$3/$E104,0)*$E104<'Wd calc'!$B$3*'Wd calc'!$B$14,ROUNDDOWN($F$3/$E104,0)*$E104<$F$3-'Wd calc'!$B$15),0,ROUNDDOWN($F$3/$E104,0)*$E104) -> 0 | G104: 0
E105: 454 | F105: =IF(OR(ROUNDDOWN($F$3/$E105,0)*$E105>$F$3,ROUNDDOWN($F$3/$E105,0)*$E105<'Wd calc'!$B$3*'Wd calc'!$B$14,ROUNDDOWN($F$3/$E105,0)*$E105<$F$3-'Wd calc'!$B$15),0,ROUNDDOWN($F$3/$E105,0)*$E105) -> 0 | G105: 0
E106: 453 | F106: =IF(OR(ROUNDDOWN($F$3/$E106,0)*$E106>$F$3,ROUNDDOWN($F$3/$E106,0)*$E106<'Wd calc'!$B$3*'Wd calc'!$B$14,ROUNDDOWN($F$3/$E106,0)*$E106<$F$3-'Wd calc'!$B$15),0,ROUNDDOWN($F$3/$E106,0)*$E106) -> 0 | G106: 0
E107: 452 | F107: =IF(OR(ROUNDDOWN($F$3/$E107,0)*$E107>$F$3,ROUNDDOWN($F$3/$E107,0)*$E107<'Wd calc'!$B$3*'Wd calc'!$B$14,ROUNDDOWN($F$3/$E107,0)*$E107<$F$3-'Wd calc'!$B$15),0,ROUNDDOWN($F$3/$E107,0)*$E107) -> 0 | G107: 0
E108: 451 | F108: =IF(OR(ROUNDDOWN($F$3/$E108,0)*$E108>$F$3,ROUNDDOWN($F$3/$E108,0)*$E108<'Wd calc'!$B$3*'Wd calc'!$B$14,ROUNDDOWN($F$3/$E108,0)*$E108<$F$3-'Wd calc'!$B$15),0,ROUNDDOWN($F$3/$E108,0)*$E108) -> 0 | G108: 0
E109: 450 | F109: =IF(OR(ROUNDDOWN($F$3/$E109,0)*$E109>$F$3,ROUNDDOWN($F$3/$E109,0)*$E109<'Wd calc'!$B$3*'Wd calc'!$B$14,ROUNDDOWN($F$3/$E109,0)*$E109<$F$3-'Wd calc'!$B$15),0,ROUNDDOWN($F$3/$E109,0)*$E109) -> 0 | G109: 0
E110: 449 | F110: =IF(OR(ROUNDDOWN($F$3/$E110,0)*$E110>$F$3,ROUNDDOWN($F$3/$E110,0)*$E110<'Wd calc'!$B$3*'Wd calc'!$B$14,ROUNDDOWN($F$3/$E110,0)*$E110<$F$3-'Wd calc'!$B$15),0,ROUNDDOWN($F$3/$E110,0)*$E110) -> 0 | G110: 0
E111: 448 | F111: =IF(OR(ROUNDDOWN($F$3/$E111,0)*$E111>$F$3,ROUNDDOWN($F$3/$E111,0)*$E111<'Wd calc'!$B$3*'Wd calc'!$B$14,ROUNDDOWN($F$3/$E111,0)*$E111<$F$3-'Wd calc'!$B$15),0,ROUNDDOWN($F$3/$E111,0)*$E111) -> 0 | G111: 0
E112: 447 | F112: =IF(OR(ROUNDDOWN($F$3/$E112,0)*$E112>$F$3,ROUNDDOWN($F$3/$E112,0)*$E112<'Wd calc'!$B$3*'Wd calc'!$B$14,ROUNDDOWN($F$3/$E112,0)*$E112<$F$3-'Wd calc'!$B$15),0,ROUNDDOWN($F$3/$E112,0)*$E112) -> 0 | G112: 0
E113: 446 | F113: =IF(OR(ROUNDDOWN($F$3/$E113,0)*$E113>$F$3,ROUNDDOWN($F$3/$E113,0)*$E113<'Wd calc'!$B$3*'Wd calc'!$B$14,ROUNDDOWN($F$3/$E113,0)*$E113<$F$3-'Wd calc'!$B$15),0,ROUNDDOWN($F$3/$E113,0)*$E113) -> 0 | G113: 0
E114: 445 | F114: =IF(OR(ROUNDDOWN($F$3/$E114,0)*$E114>$F$3,ROUNDDOWN($F$3/$E114,0)*$E114<'Wd calc'!$B$3*'Wd calc'!$B$14,ROUNDDOWN($F$3/$E114,0)*$E114<$F$3-'Wd calc'!$B$15),0,ROUNDDOWN($F$3/$E114,0)*$E114) -> 0 | G114: 0
E115: 444 | F115: =IF(OR(ROUNDDOWN($F$3/$E115,0)*$E115>$F$3,ROUNDDOWN($F$3/$E115,0)*$E115<'Wd calc'!$B$3*'Wd calc'!$B$14,ROUNDDOWN($F$3/$E115,0)*$E115<$F$3-'Wd calc'!$B$15),0,ROUNDDOWN($F$3/$E115,0)*$E115) -> 0 | G115: 0
E116: 443 | F116: =IF(OR(ROUNDDOWN($F$3/$E116,0)*$E116>$F$3,ROUNDDOWN($F$3/$E116,0)*$E116<'Wd calc'!$B$3*'Wd calc'!$B$14,ROUNDDOWN($F$3/$E116,0)*$E116<$F$3-'Wd calc'!$B$15),0,ROUNDDOWN($F$3/$E116,0)*$E116) -> 0 | G116: 0
E117: 442 | F117: =IF(OR(ROUNDDOWN($F$3/$E117,0)*$E117>$F$3,ROUNDDOWN($F$3/$E117,0)*$E117<'Wd calc'!$B$3*'Wd calc'!$B$14,ROUNDDOWN($F$3/$E117,0)*$E117<$F$3-'Wd calc'!$B$15),0,ROUNDDOWN($F$3/$E117,0)*$E117) -> 0 | G117: 0
E118: 441 | F118: =IF(OR(ROUNDDOWN($F$3/$E118,0)*$E118>$F$3,ROUNDDOWN($F$3/$E118,0)*$E118<'Wd calc'!$B$3*'Wd calc'!$B$14,ROUNDDOWN($F$3/$E118,0)*$E118<$F$3-'Wd calc'!$B$15),0,ROUNDDOWN($F$3/$E118,0)*$E118) -> 0 | G118: 0
E119: 440 | F119: =IF(OR(ROUNDDOWN($F$3/$E119,0)*$E119>$F$3,ROUNDDOWN($F$3/$E119,0)*$E119<'Wd calc'!$B$3*'Wd calc'!$B$14,ROUNDDOWN($F$3/$E119,0)*$E119<$F$3-'Wd calc'!$B$15),0,ROUNDDOWN($F$3/$E119,0)*$E119) -> 0 | G119: 0
E120: 439 | F120: =IF(OR(ROUNDDOWN($F$3/$E120,0)*$E120>$F$3,ROUNDDOWN($F$3/$E120,0)*$E120<'Wd calc'!$B$3*'Wd calc'!$B$14,ROUNDDOWN($F$3/$E120,0)*$E120<$F$3-'Wd calc'!$B$15),0,ROUNDDOWN($F$3/$E120,0)*$E120) -> 0 | G120: 0
E121: 438 | F121: =IF(OR(ROUNDDOWN($F$3/$E121,0)*$E121>$F$3,ROUNDDOWN($F$3/$E121,0)*$E121<'Wd calc'!$B$3*'Wd calc'!$B$14,ROUNDDOWN($F$3/$E121,0)*$E121<$F$3-'Wd calc'!$B$15),0,ROUNDDOWN($F$3/$E121,0)*$E121) -> 0 | G121: 0
E122: 437 | F122: =IF(OR(ROUNDDOWN($F$3/$E122,0)*$E122>$F$3,ROUNDDOWN($F$3/$E122,0)*$E122<'Wd calc'!$B$3*'Wd calc'!$B$14,ROUNDDOWN($F$3/$E122,0)*$E122<$F$3-'Wd calc'!$B$15),0,ROUNDDOWN($F$3/$E122,0)*$E122) -> 0 | G122: 0
E123: 436 | F123: =IF(OR(ROUNDDOWN($F$3/$E123,0)*$E123>$F$3,ROUNDDOWN($F$3/$E123,0)*$E123<'Wd calc'!$B$3*'Wd calc'!$B$14,ROUNDDOWN($F$3/$E123,0)*$E123<$F$3-'Wd calc'!$B$15),0,ROUNDDOWN($F$3/$E123,0)*$E123) -> 0 | G123: 0
E124: 435 | F124: =IF(OR(ROUNDDOWN($F$3/$E124,0)*$E124>$F$3,ROUNDDOWN($F$3/$E124,0)*$E124<'Wd calc'!$B$3*'Wd calc'!$B$14,ROUNDDOWN($F$3/$E124,0)*$E124<$F$3-'Wd calc'!$B$15),0,ROUNDDOWN($F$3/$E124,0)*$E124) -> 0 | G124: 0
E125: 434 | F125: =IF(OR(ROUNDDOWN($F$3/$E125,0)*$E125>$F$3,ROUNDDOWN($F$3/$E125,0)*$E125<'Wd calc'!$B$3*'Wd calc'!$B$14,ROUNDDOWN($F$3/$E125,0)*$E125<$F$3-'Wd calc'!$B$15),0,ROUNDDOWN($F$3/$E125,0)*$E125) -> 0 | G125: 0
E126: 433 | F126: =IF(OR(ROUNDDOWN($F$3/$E126,0)*$E126>$F$3,ROUNDDOWN($F$3/$E126,0)*$E126<'Wd calc'!$B$3*'Wd calc'!$B$14,ROUNDDOWN($F$3/$E126,0)*$E126<$F$3-'Wd calc'!$B$15),0,ROUNDDOWN($F$3/$E126,0)*$E126) -> 0 | G126: 0
E127: 432 | F127: =IF(OR(ROUNDDOWN($F$3/$E127,0)*$E127>$F$3,ROUNDDOWN($F$3/$E127,0)*$E127<'Wd calc'!$B$3*'Wd calc'!$B$14,ROUNDDOWN($F$3/$E127,0)*$E127<$F$3-'Wd calc'!$B$15),0,ROUNDDOWN($F$3/$E127,0)*$E127) -> 0 | G127: 0
E128: 431 | F128: =IF(OR(ROUNDDOWN($F$3/$E128,0)*$E128>$F$3,ROUNDDOWN($F$3/$E128,0)*$E128<'Wd calc'!$B$3*'Wd calc'!$B$14,ROUNDDOWN($F$3/$E128,0)*$E128<$F$3-'Wd calc'!$B$15),0,ROUNDDOWN($F$3/$E128,0)*$E128) -> 0 | G128: 0
E129: 430 | F129: =IF(OR(ROUNDDOWN($F$3/$E129,0)*$E129>$F$3,ROUNDDOWN($F$3/$E129,0)*$E129<'Wd calc'!$B$3*'Wd calc'!$B$14,ROUNDDOWN($F$3/$E129,0)*$E129<$F$3-'Wd calc'!$B$15),0,ROUNDDOWN($F$3/$E129,0)*$E129) -> 0 | G129: 0
E130: 429 | F130: =IF(OR(ROUNDDOWN($F$3/$E130,0)*$E130>$F$3,ROUNDDOWN($F$3/$E130,0)*$E130<'Wd calc'!$B$3*'Wd calc'!$B$14,ROUNDDOWN($F$3/$E130,0)*$E130<$F$3-'Wd calc'!$B$15),0,ROUNDDOWN($F$3/$E130,0)*$E130) -> 0 | G130: 0
E131: 428 | F131: =IF(OR(ROUNDDOWN($F$3/$E131,0)*$E131>$F$3,ROUNDDOWN($F$3/$E131,0)*$E131<'Wd calc'!$B$3*'Wd calc'!$B$14,ROUNDDOWN($F$3/$E131,0)*$E131<$F$3-'Wd calc'!$B$15),0,ROUNDDOWN($F$3/$E131,0)*$E131) -> 0 | G131: 0
E132: 427 | F132: =IF(OR(ROUNDDOWN($F$3/$E132,0)*$E132>$F$3,ROUNDDOWN($F$3/$E132,0)*$E132<'Wd calc'!$B$3*'Wd calc'!$B$14,ROUNDDOWN($F$3/$E132,0)*$E132<$F$3-'Wd calc'!$B$15),0,ROUNDDOWN($F$3/$E132,0)*$E132) -> 0 | G132: 0
E133: =MAX(E132-1,1) -> 426 | F133: =IF(OR(ROUNDDOWN($F$3/$E133,0)*$E133>$F$3,ROUNDDOWN($F$3/$E133,0)*$E133<'Wd calc'!$B$3*'Wd calc'!$B$14,ROUNDDOWN($F$3/$E133,0)*$E133<$F$3-'Wd calc'!$B$15),0,ROUNDDOWN($F$3/$E133,0)*$E133) -> 0 | G133: =IF(F133=0,0,E133) -> 0
E134: 425 | F134: =IF(OR(ROUNDDOWN($F$3/$E134,0)*$E134>$F$3,ROUNDDOWN($F$3/$E134,0)*$E134<'Wd calc'!$B$3*'Wd calc'!$B$14,ROUNDDOWN($F$3/$E134,0)*$E134<$F$3-'Wd calc'!$B$15),0,ROUNDDOWN($F$3/$E134,0)*$E134) -> 0 | G134: 0
E135: 424 | F135: =IF(OR(ROUNDDOWN($F$3/$E135,0)*$E135>$F$3,ROUNDDOWN($F$3/$E135,0)*$E135<'Wd calc'!$B$3*'Wd calc'!$B$14,ROUNDDOWN($F$3/$E135,0)*$E135<$F$3-'Wd calc'!$B$15),0,ROUNDDOWN($F$3/$E135,0)*$E135) -> 0 | G135: 0
E136: 423 | F136: =IF(OR(ROUNDDOWN($F$3/$E136,0)*$E136>$F$3,ROUNDDOWN($F$3/$E136,0)*$E136<'Wd calc'!$B$3*'Wd calc'!$B$14,ROUNDDOWN($F$3/$E136,0)*$E136<$F$3-'Wd calc'!$B$15),0,ROUNDDOWN($F$3/$E136,0)*$E136) -> 0 | G136: 0
E137: 422 | F137: =IF(OR(ROUNDDOWN($F$3/$E137,0)*$E137>$F$3,ROUNDDOWN($F$3/$E137,0)*$E137<'Wd calc'!$B$3*'Wd calc'!$B$14,ROUNDDOWN($F$3/$E137,0)*$E137<$F$3-'Wd calc'!$B$15),0,ROUNDDOWN($F$3/$E137,0)*$E137) -> 0 | G137: 0
E138: 421 | F138: =IF(OR(ROUNDDOWN($F$3/$E138,0)*$E138>$F$3,ROUNDDOWN($F$3/$E138,0)*$E138<'Wd calc'!$B$3*'Wd calc'!$B$14,ROUNDDOWN($F$3/$E138,0)*$E138<$F$3-'Wd calc'!$B$15),0,ROUNDDOWN($F$3/$E138,0)*$E138) -> 0 | G138: 0
E139: 420 | F139: =IF(OR(ROUNDDOWN($F$3/$E139,0)*$E139>$F$3,ROUNDDOWN($F$3/$E139,0)*$E139<'Wd calc'!$B$3*'Wd calc'!$B$14,ROUNDDOWN($F$3/$E139,0)*$E139<$F$3-'Wd calc'!$B$15),0,ROUNDDOWN($F$3/$E139,0)*$E139) -> 0 | G139: 0
E140: 419 | F140: =IF(OR(ROUNDDOWN($F$3/$E140,0)*$E140>$F$3,ROUNDDOWN($F$3/$E140,0)*$E140<'Wd calc'!$B$3*'Wd calc'!$B$14,ROUNDDOWN($F$3/$E140,0)*$E140<$F$3-'Wd calc'!$B$15),0,ROUNDDOWN($F$3/$E140,0)*$E140) -> 0 | G140: 0
E141: 418 | F141: =IF(OR(ROUNDDOWN($F$3/$E141,0)*$E141>$F$3,ROUNDDOWN($F$3/$E141,0)*$E141<'Wd calc'!$B$3*'Wd calc'!$B$14,ROUNDDOWN($F$3/$E141,0)*$E141<$F$3-'Wd calc'!$B$15),0,ROUNDDOWN($F$3/$E141,0)*$E141) -> 0 | G141: 0
E142: 417 | F142: =IF(OR(ROUNDDOWN($F$3/$E142,0)*$E142>$F$3,ROUNDDOWN($F$3/$E142,0)*$E142<'Wd calc'!$B$3*'Wd calc'!$B$14,ROUNDDOWN($F$3/$E142,0)*$E142<$F$3-'Wd calc'!$B$15),0,ROUNDDOWN($F$3/$E142,0)*$E142) -> 0 | G142: 0
E143: 416 | F143: =IF(OR(ROUNDDOWN($F$3/$E143,0)*$E143>$F$3,ROUNDDOWN($F$3/$E143,0)*$E143<'Wd calc'!$B$3*'Wd calc'!$B$14,ROUNDDOWN($F$3/$E143,0)*$E143<$F$3-'Wd calc'!$B$15),0,ROUNDDOWN($F$3/$E143,0)*$E143) -> 0 | G143: 0
E144: 415 | F144: =IF(OR(ROUNDDOWN($F$3/$E144,0)*$E144>$F$3,ROUNDDOWN($F$3/$E144,0)*$E144<'Wd calc'!$B$3*'Wd calc'!$B$14,ROUNDDOWN($F$3/$E144,0)*$E144<$F$3-'Wd calc'!$B$15),0,ROUNDDOWN($F$3/$E144,0)*$E144) -> 0 | G144: 0
E145: 414 | F145: =IF(OR(ROUNDDOWN($F$3/$E145,0)*$E145>$F$3,ROUNDDOWN($F$3/$E145,0)*$E145<'Wd calc'!$B$3*'Wd calc'!$B$14,ROUNDDOWN($F$3/$E145,0)*$E145<$F$3-'Wd calc'!$B$15),0,ROUNDDOWN($F$3/$E145,0)*$E145) -> 0 | G145: 0
E146: 413 | F146: =IF(OR(ROUNDDOWN($F$3/$E146,0)*$E146>$F$3,ROUNDDOWN($F$3/$E146,0)*$E146<'Wd calc'!$B$3*'Wd calc'!$B$14,ROUNDDOWN($F$3/$E146,0)*$E146<$F$3-'Wd calc'!$B$15),0,ROUNDDOWN($F$3/$E146,0)*$E146) -> 0 | G146: 0
E147: 412 | F147: =IF(OR(ROUNDDOWN($F$3/$E147,0)*$E147>$F$3,ROUNDDOWN($F$3/$E147,0)*$E147<'Wd calc'!$B$3*'Wd calc'!$B$14,ROUNDDOWN($F$3/$E147,0)*$E147<$F$3-'Wd calc'!$B$15),0,ROUNDDOWN($F$3/$E147,0)*$E147) -> 0 | G147: 0
E148: 411 | F148: =IF(OR(ROUNDDOWN($F$3/$E148,0)*$E148>$F$3,ROUNDDOWN($F$3/$E148,0)*$E148<'Wd calc'!$B$3*'Wd calc'!$B$14,ROUNDDOWN($F$3/$E148,0)*$E148<$F$3-'Wd calc'!$B$15),0,ROUNDDOWN($F$3/$E148,0)*$E148) -> 0 | G148: 0
E149: 410 | F149: =IF(OR(ROUNDDOWN($F$3/$E149,0)*$E149>$F$3,ROUNDDOWN($F$3/$E149,0)*$E149<'Wd calc'!$B$3*'Wd calc'!$B$14,ROUNDDOWN($F$3/$E149,0)*$E149<$F$3-'Wd calc'!$B$15),0,ROUNDDOWN($F$3/$E149,0)*$E149) -> 0 | G149: 0
E150: 409 | F150: =IF(OR(ROUNDDOWN($F$3/$E150,0)*$E150>$F$3,ROUNDDOWN($F$3/$E150,0)*$E150<'Wd calc'!$B$3*'Wd calc'!$B$14,ROUNDDOWN($F$3/$E150,0)*$E150<$F$3-'Wd calc'!$B$15),0,ROUNDDOWN($F$3/$E150,0)*$E150) -> 0 | G150: 0
E151: 408 | F151: =IF(OR(ROUNDDOWN($F$3/$E151,0)*$E151>$F$3,ROUNDDOWN($F$3/$E151,0)*$E151<'Wd calc'!$B$3*'Wd calc'!$B$14,ROUNDDOWN($F$3/$E151,0)*$E151<$F$3-'Wd calc'!$B$15),0,ROUNDDOWN($F$3/$E151,0)*$E151) -> 0 | G151: 0
E152: 407 | F152: =IF(OR(ROUNDDOWN($F$3/$E152,0)*$E152>$F$3,ROUNDDOWN($F$3/$E152,0)*$E152<'Wd calc'!$B$3*'Wd calc'!$B$14,ROUNDDOWN($F$3/$E152,0)*$E152<$F$3-'Wd calc'!$B$15),0,ROUNDDOWN($F$3/$E152,0)*$E152) -> 0 | G152: 0
E153: 406 | F153: =IF(OR(ROUNDDOWN($F$3/$E153,0)*$E153>$F$3,ROUNDDOWN($F$3/$E153,0)*$E153<'Wd calc'!$B$3*'Wd calc'!$B$14,ROUNDDOWN($F$3/$E153,0)*$E153<$F$3-'Wd calc'!$B$15),0,ROUNDDOWN($F$3/$E153,0)*$E153) -> 0 | G153: 0
E154: 405 | F154: =IF(OR(ROUNDDOWN($F$3/$E154,0)*$E154>$F$3,ROUNDDOWN($F$3/$E154,0)*$E154<'Wd calc'!$B$3*'Wd calc'!$B$14,ROUNDDOWN($F$3/$E154,0)*$E154<$F$3-'Wd calc'!$B$15),0,ROUNDDOWN($F$3/$E154,0)*$E154) -> 0 | G154: 0
E155: 404 | F155: =IF(OR(ROUNDDOWN($F$3/$E155,0)*$E155>$F$3,ROUNDDOWN($F$3/$E155,0)*$E155<'Wd calc'!$B$3*'Wd calc'!$B$14,ROUNDDOWN($F$3/$E155,0)*$E155<$F$3-'Wd calc'!$B$15),0,ROUNDDOWN($F$3/$E155,0)*$E155) -> 0 | G155: 0
E156: 403 | F156: =IF(OR(ROUNDDOWN($F$3/$E156,0)*$E156>$F$3,ROUNDDOWN($F$3/$E156,0)*$E156<'Wd calc'!$B$3*'Wd calc'!$B$14,ROUNDDOWN($F$3/$E156,0)*$E156<$F$3-'Wd calc'!$B$15),0,ROUNDDOWN($F$3/$E156,0)*$E156) -> 0 | G156: 0
E157: 402 | F157: =IF(OR(ROUNDDOWN($F$3/$E157,0)*$E157>$F$3,ROUNDDOWN($F$3/$E157,0)*$E157<'Wd calc'!$B$3*'Wd calc'!$B$14,ROUNDDOWN($F$3/$E157,0)*$E157<$F$3-'Wd calc'!$B$15),0,ROUNDDOWN($F$3/$E157,0)*$E157) -> 0 | G157: 0
E158: 401 | F158: =IF(OR(ROUNDDOWN($F$3/$E158,0)*$E158>$F$3,ROUNDDOWN($F$3/$E158,0)*$E158<'Wd calc'!$B$3*'Wd calc'!$B$14,ROUNDDOWN($F$3/$E158,0)*$E158<$F$3-'Wd calc'!$B$15),0,ROUNDDOWN($F$3/$E158,0)*$E158) -> 0 | G158: 0
E159: 400 | F159: =IF(OR(ROUNDDOWN($F$3/$E159,0)*$E159>$F$3,ROUNDDOWN($F$3/$E159,0)*$E159<'Wd calc'!$B$3*'Wd calc'!$B$14,ROUNDDOWN($F$3/$E159,0)*$E159<$F$3-'Wd calc'!$B$15),0,ROUNDDOWN($F$3/$E159,0)*$E159) -> 20000 | G159: 400
E160: 399 | F160: =IF(OR(ROUNDDOWN($F$3/$E160,0)*$E160>$F$3,ROUNDDOWN($F$3/$E160,0)*$E160<'Wd calc'!$B$3*'Wd calc'!$B$14,ROUNDDOWN($F$3/$E160,0)*$E160<$F$3-'Wd calc'!$B$15),0,ROUNDDOWN($F$3/$E160,0)*$E160) -> 0 | G160: 0
E161: 398 | F161: =IF(OR(ROUNDDOWN($F$3/$E161,0)*$E161>$F$3,ROUNDDOWN($F$3/$E161,0)*$E161<'Wd calc'!$B$3*'Wd calc'!$B$14,ROUNDDOWN($F$3/$E161,0)*$E161<$F$3-'Wd calc'!$B$15),0,ROUNDDOWN($F$3/$E161,0)*$E161) -> 0 | G161: 0
E162: 397 | F162: =IF(OR(ROUNDDOWN($F$3/$E162,0)*$E162>$F$3,ROUNDDOWN($F$3/$E162,0)*$E162<'Wd calc'!$B$3*'Wd calc'!$B$14,ROUNDDOWN($F$3/$E162,0)*$E162<$F$3-'Wd calc'!$B$15),0,ROUNDDOWN($F$3/$E162,0)*$E162) -> 0 | G162: 0
E163: 396 | F163: =IF(OR(ROUNDDOWN($F$3/$E163,0)*$E163>$F$3,ROUNDDOWN($F$3/$E163,0)*$E163<'Wd calc'!$B$3*'Wd calc'!$B$14,ROUNDDOWN($F$3/$E163,0)*$E163<$F$3-'Wd calc'!$B$15),0,ROUNDDOWN($F$3/$E163,0)*$E163) -> 0 | G163: 0
E164: 395 | F164: =IF(OR(ROUNDDOWN($F$3/$E164,0)*$E164>$F$3,ROUNDDOWN($F$3/$E164,0)*$E164<'Wd calc'!$B$3*'Wd calc'!$B$14,ROUNDDOWN($F$3/$E164,0)*$E164<$F$3-'Wd calc'!$B$15),0,ROUNDDOWN($F$3/$E164,0)*$E164) -> 0 | G164: 0
E165: 394 | F165: =IF(OR(ROUNDDOWN($F$3/$E165,0)*$E165>$F$3,ROUNDDOWN($F$3/$E165,0)*$E165<'Wd calc'!$B$3*'Wd calc'!$B$14,ROUNDDOWN($F$3/$E165,0)*$E165<$F$3-'Wd calc'!$B$15),0,ROUNDDOWN($F$3/$E165,0)*$E165) -> 0 | G165: 0
E166: 393 | F166: =IF(OR(ROUNDDOWN($F$3/$E166,0)*$E166>$F$3,ROUNDDOWN($F$3/$E166,0)*$E166<'Wd calc'!$B$3*'Wd calc'!$B$14,ROUNDDOWN($F$3/$E166,0)*$E166<$F$3-'Wd calc'!$B$15),0,ROUNDDOWN($F$3/$E166,0)*$E166) -> 0 | G166: 0
E167: 392 | F167: =IF(OR(ROUNDDOWN($F$3/$E167,0)*$E167>$F$3,ROUNDDOWN($F$3/$E167,0)*$E167<'Wd calc'!$B$3*'Wd calc'!$B$14,ROUNDDOWN($F$3/$E167,0)*$E167<$F$3-'Wd calc'!$B$15),0,ROUNDDOWN($F$3/$E167,0)*$E167) -> 0 | G167: 0
E168: 391 | F168: =IF(OR(ROUNDDOWN($F$3/$E168,0)*$E168>$F$3,ROUNDDOWN($F$3/$E168,0)*$E168<'Wd calc'!$B$3*'Wd calc'!$B$14,ROUNDDOWN($F$3/$E168,0)*$E168<$F$3-'Wd calc'!$B$15),0,ROUNDDOWN($F$3/$E168,0)*$E168) -> 0 | G168: 0
E169: 390 | F169: =IF(OR(ROUNDDOWN($F$3/$E169,0)*$E169>$F$3,ROUNDDOWN($F$3/$E169,0)*$E169<'Wd calc'!$B$3*'Wd calc'!$B$14,ROUNDDOWN($F$3/$E169,0)*$E169<$F$3-'Wd calc'!$B$15),0,ROUNDDOWN($F$3/$E169,0)*$E169) -> 0 | G169: 0
E170: 389 | F170: =IF(OR(ROUNDDOWN($F$3/$E170,0)*$E170>$F$3,ROUNDDOWN($F$3/$E170,0)*$E170<'Wd calc'!$B$3*'Wd calc'!$B$14,ROUNDDOWN($F$3/$E170,0)*$E170<$F$3-'Wd calc'!$B$15),0,ROUNDDOWN($F$3/$E170,0)*$E170) -> 0 | G170: 0
E171: 388 | F171: =IF(OR(ROUNDDOWN($F$3/$E171,0)*$E171>$F$3,ROUNDDOWN($F$3/$E171,0)*$E171<'Wd calc'!$B$3*'Wd calc'!$B$14,ROUNDDOWN($F$3/$E171,0)*$E171<$F$3-'Wd calc'!$B$15),0,ROUNDDOWN($F$3/$E171,0)*$E171) -> 0 | G171: 0
E172: 387 | F172: =IF(OR(ROUNDDOWN($F$3/$E172,0)*$E172>$F$3,ROUNDDOWN($F$3/$E172,0)*$E172<'Wd calc'!$B$3*'Wd calc'!$B$14,ROUNDDOWN($F$3/$E172,0)*$E172<$F$3-'Wd calc'!$B$15),0,ROUNDDOWN($F$3/$E172,0)*$E172) -> 0 | G172: 0
E173: 386 | F173: =IF(OR(ROUNDDOWN($F$3/$E173,0)*$E173>$F$3,ROUNDDOWN($F$3/$E173,0)*$E173<'Wd calc'!$B$3*'Wd calc'!$B$14,ROUNDDOWN($F$3/$E173,0)*$E173<$F$3-'Wd calc'!$B$15),0,ROUNDDOWN($F$3/$E173,0)*$E173) -> 0 | G173: 0
E174: 385 | F174: =IF(OR(ROUNDDOWN($F$3/$E174,0)*$E174>$F$3,ROUNDDOWN($F$3/$E174,0)*$E174<'Wd calc'!$B$3*'Wd calc'!$B$14,ROUNDDOWN($F$3/$E174,0)*$E174<$F$3-'Wd calc'!$B$15),0,ROUNDDOWN($F$3/$E174,0)*$E174) -> 0 | G174: 0
E175: 384 | F175: =IF(OR(ROUNDDOWN($F$3/$E175,0)*$E175>$F$3,ROUNDDOWN($F$3/$E175,0)*$E175<'Wd calc'!$B$3*'Wd calc'!$B$14,ROUNDDOWN($F$3/$E175,0)*$E175<$F$3-'Wd calc'!$B$15),0,ROUNDDOWN($F$3/$E175,0)*$E175) -> 0 | G175: 0
E176: 383 | F176: =IF(OR(ROUNDDOWN($F$3/$E176,0)*$E176>$F$3,ROUNDDOWN($F$3/$E176,0)*$E176<'Wd calc'!$B$3*'Wd calc'!$B$14,ROUNDDOWN($F$3/$E176,0)*$E176<$F$3-'Wd calc'!$B$15),0,ROUNDDOWN($F$3/$E176,0)*$E176) -> 0 | G176: 0
E177: 382 | F177: =IF(OR(ROUNDDOWN($F$3/$E177,0)*$E177>$F$3,ROUNDDOWN($F$3/$E177,0)*$E177<'Wd calc'!$B$3*'Wd calc'!$B$14,ROUNDDOWN($F$3/$E177,0)*$E177<$F$3-'Wd calc'!$B$15),0,ROUNDDOWN($F$3/$E177,0)*$E177) -> 0 | G177: 0
E178: 381 | F178: =IF(OR(ROUNDDOWN($F$3/$E178,0)*$E178>$F$3,ROUNDDOWN($F$3/$E178,0)*$E178<'Wd calc'!$B$3*'Wd calc'!$B$14,ROUNDDOWN($F$3/$E178,0)*$E178<$F$3-'Wd calc'!$B$15),0,ROUNDDOWN($F$3/$E178,0)*$E178) -> 0 | G178: 0
E179: 380 | F179: =IF(OR(ROUNDDOWN($F$3/$E179,0)*$E179>$F$3,ROUNDDOWN($F$3/$E179,0)*$E179<'Wd calc'!$B$3*'Wd calc'!$B$14,ROUNDDOWN($F$3/$E179,0)*$E179<$F$3-'Wd calc'!$B$15),0,ROUNDDOWN($F$3/$E179,0)*$E179) -> 0 | G179: 0
E180: 379 | F180: =IF(OR(ROUNDDOWN($F$3/$E180,0)*$E180>$F$3,ROUNDDOWN($F$3/$E180,0)*$E180<'Wd calc'!$B$3*'Wd calc'!$B$14,ROUNDDOWN($F$3/$E180,0)*$E180<$F$3-'Wd calc'!$B$15),0,ROUNDDOWN($F$3/$E180,0)*$E180) -> 0 | G180: 0
E181: 378 | F181: =IF(OR(ROUNDDOWN($F$3/$E181,0)*$E181>$F$3,ROUNDDOWN($F$3/$E181,0)*$E181<'Wd calc'!$B$3*'Wd calc'!$B$14,ROUNDDOWN($F$3/$E181,0)*$E181<$F$3-'Wd calc'!$B$15),0,ROUNDDOWN($F$3/$E181,0)*$E181) -> 0 | G181: 0
E182: 377 | F182: =IF(OR(ROUNDDOWN($F$3/$E182,0)*$E182>$F$3,ROUNDDOWN($F$3/$E182,0)*$E182<'Wd calc'!$B$3*'Wd calc'!$B$14,ROUNDDOWN($F$3/$E182,0)*$E182<$F$3-'Wd calc'!$B$15),0,ROUNDDOWN($F$3/$E182,0)*$E182) -> 0 | G182: 0
E183: 376 | F183: =IF(OR(ROUNDDOWN($F$3/$E183,0)*$E183>$F$3,ROUNDDOWN($F$3/$E183,0)*$E183<'Wd calc'!$B$3*'Wd calc'!$B$14,ROUNDDOWN($F$3/$E183,0)*$E183<$F$3-'Wd calc'!$B$15),0,ROUNDDOWN($F$3/$E183,0)*$E183) -> 0 | G183: 0
E184: 375 | F184: =IF(OR(ROUNDDOWN($F$3/$E184,0)*$E184>$F$3,ROUNDDOWN($F$3/$E184,0)*$E184<'Wd calc'!$B$3*'Wd calc'!$B$14,ROUNDDOWN($F$3/$E184,0)*$E184<$F$3-'Wd calc'!$B$15),0,ROUNDDOWN($F$3/$E184,0)*$E184) -> 0 | G184: 0
E185: 374 | F185: =IF(OR(ROUNDDOWN($F$3/$E185,0)*$E185>$F$3,ROUNDDOWN($F$3/$E185,0)*$E185<'Wd calc'!$B$3*'Wd calc'!$B$14,ROUNDDOWN($F$3/$E185,0)*$E185<$F$3-'Wd calc'!$B$15),0,ROUNDDOWN($F$3/$E185,0)*$E185) -> 0 | G185: 0
E186: 373 | F186: =IF(OR(ROUNDDOWN($F$3/$E186,0)*$E186>$F$3,ROUNDDOWN($F$3/$E186,0)*$E186<'Wd calc'!$B$3*'Wd calc'!$B$14,ROUNDDOWN($F$3/$E186,0)*$E186<$F$3-'Wd calc'!$B$15),0,ROUNDDOWN($F$3/$E186,0)*$E186) -> 0 | G186: 0
E187: 372 | F187: =IF(OR(ROUNDDOWN($F$3/$E187,0)*$E187>$F$3,ROUNDDOWN($F$3/$E187,0)*$E187<'Wd calc'!$B$3*'Wd calc'!$B$14,ROUNDDOWN($F$3/$E187,0)*$E187<$F$3-'Wd calc'!$B$15),0,ROUNDDOWN($F$3/$E187,0)*$E187) -> 0 | G187: 0
E188: 371 | F188: =IF(OR(ROUNDDOWN($F$3/$E188,0)*$E188>$F$3,ROUNDDOWN($F$3/$E188,0)*$E188<'Wd calc'!$B$3*'Wd calc'!$B$14,ROUNDDOWN($F$3/$E188,0)*$E188<$F$3-'Wd calc'!$B$15),0,ROUNDDOWN($F$3/$E188,0)*$E188) -> 0 | G188: 0
E189: 370 | F189: =IF(OR(ROUNDDOWN($F$3/$E189,0)*$E189>$F$3,ROUNDDOWN($F$3/$E189,0)*$E189<'Wd calc'!$B$3*'Wd calc'!$B$14,ROUNDDOWN($F$3/$E189,0)*$E189<$F$3-'Wd calc'!$B$15),0,ROUNDDOWN($F$3/$E189,0)*$E189) -> 0 | G189: 0
E190: 369 | F190: =IF(OR(ROUNDDOWN($F$3/$E190,0)*$E190>$F$3,ROUNDDOWN($F$3/$E190,0)*$E190<'Wd calc'!$B$3*'Wd calc'!$B$14,ROUNDDOWN($F$3/$E190,0)*$E190<$F$3-'Wd calc'!$B$15),0,ROUNDDOWN($F$3/$E190,0)*$E190) -> 0 | G190: 0
E191: 368 | F191: =IF(OR(ROUNDDOWN($F$3/$E191,0)*$E191>$F$3,ROUNDDOWN($F$3/$E191,0)*$E191<'Wd calc'!$B$3*'Wd calc'!$B$14,ROUNDDOWN($F$3/$E191,0)*$E191<$F$3-'Wd calc'!$B$15),0,ROUNDDOWN($F$3/$E191,0)*$E191) -> 0 | G191: 0
E192: 367 | F192: =IF(OR(ROUNDDOWN($F$3/$E192,0)*$E192>$F$3,ROUNDDOWN($F$3/$E192,0)*$E192<'Wd calc'!$B$3*'Wd calc'!$B$14,ROUNDDOWN($F$3/$E192,0)*$E192<$F$3-'Wd calc'!$B$15),0,ROUNDDOWN($F$3/$E192,0)*$E192) -> 0 | G192: 0
E193: 366 | F193: =IF(OR(ROUNDDOWN($F$3/$E193,0)*$E193>$F$3,ROUNDDOWN($F$3/$E193,0)*$E193<'Wd calc'!$B$3*'Wd calc'!$B$14,ROUNDDOWN($F$3/$E193,0)*$E193<$F$3-'Wd calc'!$B$15),0,ROUNDDOWN($F$3/$E193,0)*$E193) -> 0 | G193: 0
E194: 365 | F194: =IF(OR(ROUNDDOWN($F$3/$E194,0)*$E194>$F$3,ROUNDDOWN($F$3/$E194,0)*$E194<'Wd calc'!$B$3*'Wd calc'!$B$14,ROUNDDOWN($F$3/$E194,0)*$E194<$F$3-'Wd calc'!$B$15),0,ROUNDDOWN($F$3/$E194,0)*$E194) -> 0 | G194: 0
E195: 364 | F195: =IF(OR(ROUNDDOWN($F$3/$E195,0)*$E195>$F$3,ROUNDDOWN($F$3/$E195,0)*$E195<'Wd calc'!$B$3*'Wd calc'!$B$14,ROUNDDOWN($F$3/$E195,0)*$E195<$F$3-'Wd calc'!$B$15),0,ROUNDDOWN($F$3/$E195,0)*$E195) -> 0 | G195: 0
E196: 363 | F196: =IF(OR(ROUNDDOWN($F$3/$E196,0)*$E196>$F$3,ROUNDDOWN($F$3/$E196,0)*$E196<'Wd calc'!$B$3*'Wd calc'!$B$14,ROUNDDOWN($F$3/$E196,0)*$E196<$F$3-'Wd calc'!$B$15),0,ROUNDDOWN($F$3/$E196,0)*$E196) -> 0 | G196: 0
E197: =MAX(E196-1,1) -> 362 | F197: =IF(OR(ROUNDDOWN($F$3/$E197,0)*$E197>$F$3,ROUNDDOWN($F$3/$E197,0)*$E197<'Wd calc'!$B$3*'Wd calc'!$B$14,ROUNDDOWN($F$3/$E197,0)*$E197<$F$3-'Wd calc'!$B$15),0,ROUNDDOWN($F$3/$E197,0)*$E197) -> 0 | G197: =IF(F197=0,0,E197) -> 0
E198: 361 | F198: =IF(OR(ROUNDDOWN($F$3/$E198,0)*$E198>$F$3,ROUNDDOWN($F$3/$E198,0)*$E198<'Wd calc'!$B$3*'Wd calc'!$B$14,ROUNDDOWN($F$3/$E198,0)*$E198<$F$3-'Wd calc'!$B$15),0,ROUNDDOWN($F$3/$E198,0)*$E198) -> 0 | G198: 0
E199: 360 | F199: =IF(OR(ROUNDDOWN($F$3/$E199,0)*$E199>$F$3,ROUNDDOWN($F$3/$E199,0)*$E199<'Wd calc'!$B$3*'Wd calc'!$B$14,ROUNDDOWN($F$3/$E199,0)*$E199<$F$3-'Wd calc'!$B$15),0,ROUNDDOWN($F$3/$E199,0)*$E199) -> 0 | G199: 0
E200: 359 | F200: =IF(OR(ROUNDDOWN($F$3/$E200,0)*$E200>$F$3,ROUNDDOWN($F$3/$E200,0)*$E200<'Wd calc'!$B$3*'Wd calc'!$B$14,ROUNDDOWN($F$3/$E200,0)*$E200<$F$3-'Wd calc'!$B$15),0,ROUNDDOWN($F$3/$E200,0)*$E200) -> 0 | G200: 0
E201: 358 | F201: =IF(OR(ROUNDDOWN($F$3/$E201,0)*$E201>$F$3,ROUNDDOWN($F$3/$E201,0)*$E201<'Wd calc'!$B$3*'Wd calc'!$B$14,ROUNDDOWN($F$3/$E201,0)*$E201<$F$3-'Wd calc'!$B$15),0,ROUNDDOWN($F$3/$E201,0)*$E201) -> 0 | G201: 0
... 9804 more rows
